{"text_format":"1","workbook":"xlsx","n_sheets":8,"sheets":["Титул","График","План","Компетенции","Компетенции(2)","Кабинеты","Пояснения","Start"],"not_rendered":{"charts":0,"images":0,"macros":1,"external_links":0,"defined_names":0,"comments":1,"pivot_tables":0},"unopened":[],"bounds":{"document_bytes":16777216,"sheet_cells":100000,"rows_first":2000,"rows_last":500,"rows_between":2000,"halvings":0,"cell_chars":16384,"cell_head_chars":4096},"cells_cut":0,"cells_raw":0,"read":"whole","date_system":"1900"}

{"sheet":"Титул","index":0,"n_rows":26,"n_cols":45,"rows_kept":26,"cut":false,"hidden":false,"merged":[[1,36,1,47],[3,36,3,47],[5,36,6,47],[8,0,8,47],[9,0,9,47],[10,0,10,47],[11,0,11,47],[12,0,12,47],[13,0,13,4],[13,6,13,47],[14,0,14,5],[14,6,14,46],[15,0,15,13],[16,0,16,3],[16,4,16,47],[18,0,18,5],[18,6,18,47],[26,44,26,47],[20,34,20,43],[20,44,20,47],[22,0,22,19],[20,28,20,32],[26,0,26,5],[25,0,25,10],[28,0,28,19],[28,20,28,47],[29,20,29,47],[31,0,31,10],[31,11,31,12],[31,13,31,17],[31,18,31,19],[31,20,31,25],[20,0,20,5],[20,6,20,13],[20,16,20,27],[25,11,25,12],[25,13,25,17],[25,18,25,19],[25,20,25,25],[26,6,26,13],[26,16,26,27],[26,28,26,32],[22,20,22,47],[23,20,23,47],[26,34,26,43]]}
[null,"утвержден решением педагогического совета (протокол  № 2-1\\17-18  от 25 августа 2019 года), приказ № 2\\2  от 25 августа 2017 г."]
[null,null,null,null,null,null,null,null,null,null,null,null,null,null,null,null,null,null,null,null,null,null,null,null,null,null,null,null,null,null,null,null,null,null,null,null,"Утверждаю"]
[]
[null,null,null,null,null,null,null,null,null,null,null,null,null,null,null,null,null,null,null,null,null,null,null,null,null,null,null,null,null,null,null,null,null,null,null,null,"Директор"]
[]
[null,null,null,null,null,null,null,null,null,null,null,null,null,null,null,null,null,null,null,null,null,null,null,null,null,null,null,null,null,null,null,null,null,null,null,null,"Пшунетлев А.К."]
[]
[]
["УЧЕБНЫЙ ПЛАН"]
["основной профессиональной образовательной программы среднего профессионального образования"]
[" Автономной некоммерческой профессиональной образовательной организация «Сочинский колледж управления» (АНПОО «Сочинский колледж управления»)"]
["наименование образовательного учреждения (организации)"]
["по специальности среднего профессионального образования"]
["40.02.01",null,null,null,null,null,"Право и организация социального обеспечения                                                                  2017 год набора"]
["код",null,null,null,null,null,"наименование специальности"]
["по программе базовой подготовки"]
["на базе",null,null,null,"основное общее образование"]
[]
["квалификация:",null,null,null,null,null,"юрист"]
[]
["форма обучения",null,null,null,null,null,"Очная",null,null,null,null,null,null,null,null,null,"нормативный срок освоения ОПОП  ",null,null,null,null,null,null,null,null,null,null,null,"2г 10м",null,null,null,null,null,"год начала подготовки по УП",null,null,null,null,null,null,null,null,null,2016]
[]
["профиль получаемого профессионального образования",null,null,null,null,null,null,null,null,null,null,null,null,null,null,null,null,null,null,null,"Гуманитарный"]
[null,null,null,null,null,null,null,null,null,null,null,null,null,null,null,null,null,null,null,null,"при реализации программы среднего (полного) общего образования"]
[]
["Приказ об утверждении ФГОС",null,null,null,null,null,null,null,null,null,null,"от ",null,"2014-05-12",null,null,null,null,"     № ",null,508]

{"sheet":"График","index":1,"n_rows":179,"n_cols":66,"rows_kept":179,"cut":false,"hidden":false,"merged":[[1,0,1,16],[2,0,4,0],[2,1,2,4],[2,5,3,5],[2,6,2,8],[2,9,3,9],[2,10,2,12],[2,14,2,17],[2,18,3,18],[2,19,2,21],[2,22,3,22],[2,23,2,25],[2,26,3,26],[2,27,2,30],[2,31,3,31],[2,32,2,34],[2,35,3,35],[2,36,2,39],[2,40,2,43],[2,44,3,44],[2,45,2,47],[2,48,3,48],[2,49,2,52],[5,1,5,52],[6,0,7,0],[6,1,7,1],[6,2,7,2],[6,3,7,3],[6,4,7,4],[6,5,7,5],[6,6,7,6],[6,7,7,7],[6,8,7,8],[6,9,7,9],[6,10,7,10],[6,11,7,11],[6,12,7,12],[6,13,7,13],[6,14,7,14],[6,15,7,15],[6,16,7,16],[6,17,7,17],[6,18,7,18],[6,19,7,19],[6,20,7,20],[6,21,7,21],[6,22,7,22],[6,23,7,23],[6,24,7,24],[6,25,7,25],[6,26,7,26],[6,27,7,27],[6,28,7,28],[6,29,7,29],[6,30,7,30],[6,31,7,31],[6,32,7,32],[6,33,7,33],[6,34,7,34],[6,35,7,35],[6,46,7,46],[6,47,7,47],[6,36,7,36],[6,37,7,37],[6,38,7,38],[6,39,7,39],[6,40,7,40],[6,41,7,41],[6,48,7,48],[6,49,7,49],[6,50,7,50],[6,51,7,51],[6,52,7,52],[8,1,8,52],[6,42,7,42],[6,43,7,43],[6,44,7,44],[6,45,7,45],[9,0,10,0],[9,1,10,1],[9,2,10,2],[9,3,10,3],[9,4,10,4],[9,5,10,5],[9,6,10,6],[9,7,10,7],[9,8,10,8],[9,9,10,9],[9,10,10,10],[9,11,10,11],[9,12,10,12],[9,13,10,13],[9,14,10,14],[9,15,10,15],[9,16,10,16],[9,17,10,17],[9,18,10,18],[9,19,10,19],[9,20,10,20],[9,21,10,21],[9,22,10,22],[9,23,10,23],[9,24,10,24],[9,25,10,25],[9,26,10,26],[9,27,10,27],[9,28,10,28],[9,29,10,29],[9,30,10,30],[9,31,10,31],[9,32,10,32],[9,33,10,33],[9,34,10,34],[9,35,10,35],[9,46,10,46],[9,47,10,47],[9,36,10,36],[9,37,10,37],[9,38,10,38],[9,39,10,39],[9,40,10,40],[9,41,10,41],[9,48,10,48],[9,49,10,49],[9,50,10,50],[9,51,10,51],[9,52,10,52],[11,1,11,52],[9,42,10,42],[9,43,10,43],[9,44,10,44],[9,45,10,45],[12,0,13,0],[12,1,13,1],[12,2,13,2],[12,3,13,3],[12,4,13,4],[12,5,13,5],[12,6,13,6],[12,7,13,7],[12,8,13,8],[12,9,13,9],[12,10,13,10],[12,11,13,11],[12,12,13,12],[12,13,13,13],[12,14,13,14],[12,15,13,15],[12,16,13,16],[12,17,13,17],[12,18,13,18],[12,19,13,19],[12,20,13,20],[12,21,13,21],[12,22,13,22],[12,23,13,23],[12,24,13,24],[12,25,13,25],[12,26,13,26],[12,27,13,27],[12,28,13,28],[12,29,13,29],[12,30,13,30],[12,31,13,31],[12,32,13,32],[12,33,13,33],[12,34,13,34],[12,35,13,35],[12,46,13,46],[12,47,13,47],[12,36,13,36],[12,37,13,37],[12,38,13,38],[12,39,13,39],[12,40,13,40],[12,41,13,41],[12,48,13,48],[12,49,13,49],[12,50,13,50],[12,51,13,51],[12,52,13,52],[14,1,14,52],[12,42,13,42],[12,43,13,43],[12,44,13,44],[12,45,13,45],[15,0,16,0],[15,1,16,1],[15,2,16,2],[15,3,16,3],[15,4,16,4],[15,5,16,5],[15,6,16,6],[15,7,16,7],[15,8,16,8],[15,9,16,9],[15,10,16,10],[15,11,16,11],[15,12,16,12],[15,13,16,13],[15,14,16,14],[15,15,16,15],[15,16,16,16],[15,17,16,17],[15,18,16,18],[15,19,16,19],[15,20,16,20],[15,21,16,21],[15,22,16,22],[15,23,16,23],[15,24,16,24],[15,25,16,25],[15,26,16,26],[15,27,16,27],[15,28,16,28],[15,29,16,29],[15,30,16,30],[15,31,16,31],[15,32,16,32],[15,33,16,33],[15,34,16,34],[15,35,16,35],[15,46,16,46],[15,47,16,47],[15,36,16,36],[15,37,16,37],[15,38,16,38],[15,39,16,39],[15,40,16,40],[15,41,16,41],[15,48,16,48],[15,49,16,49],[15,50,16,50],[15,51,16,51],[15,52,16,52],[17,1,17,52],[15,42,16,42],[15,43,16,43],[15,44,16,44],[15,45,16,45],[18,0,19,0],[18,1,19,1],[18,2,19,2],[18,3,19,3],[18,4,19,4],[18,5,19,5],[18,6,19,6],[18,7,19,7],[18,8,19,8],[18,9,19,9],[18,10,19,10],[18,11,19,11],[18,12,19,12],[18,13,19,13],[18,14,19,14],[18,15,19,15],[18,16,19,16],[18,17,19,17],[18,18,19,18],[18,19,19,19],[18,20,19,20],[18,21,19,21],[18,22,19,22],[18,23,19,23],[18,24,19,24],[18,25,19,25],[18,26,19,26],[18,27,19,27],[18,28,19,28],[18,29,19,29],[18,30,19,30],[18,31,19,31],[18,32,19,32],[18,33,19,33],[18,34,19,34],[18,35,19,35],[18,36,19,36],[18,37,19,37],[18,38,19,38],[18,39,19,39],[18,40,19,40],[18,41,19,41],[18,42,19,42],[18,43,19,43],[18,44,19,44],[18,45,19,45],[18,46,19,46],[18,47,19,47],[18,48,19,48],[18,49,19,49],[18,50,19,50],[18,51,19,51],[18,52,19,52],[21,0,22,0],[21,1,22,1],[21,2,22,2],[21,3,22,3],[21,4,22,4],[21,5,22,5],[21,6,22,6],[21,7,22,7],[21,8,22,8],[21,9,22,9],[21,10,22,10],[21,11,22,11],[21,12,22,12],[21,13,22,13],[21,14,22,14],[21,15,22,15],[21,16,22,16],[21,17,22,17],[21,18,22,18],[21,19,22,19],[21,20,22,20],[21,21,22,21],[21,22,22,22],[21,23,22,23],[21,24,22,24],[21,25,22,25],[21,26,22,26],[21,27,22,27],[21,28,22,28],[21,29,22,29],[21,30,22,30],[21,31,22,31],[21,32,22,32],[21,33,22,33],[21,34,22,34],[21,35,22,35],[21,36,22,36],[21,37,22,37],[21,38,22,38],[21,39,22,39],[21,40,22,40],[21,41,22,41],[21,42,22,42],[21,43,22,43],[21,44,22,44],[21,45,22,45],[21,46,22,46],[21,47,22,47],[21,48,22,48],[21,49,22,49],[21,50,22,50],[21,51,22,51],[21,52,22,52],[24,0,25,0],[24,1,25,1],[24,2,25,2],[24,3,25,3],[24,4,25,4],[24,5,25,5],[24,6,25,6],[24,7,25,7],[24,8,25,8],[24,9,25,9],[24,10,25,10],[24,11,25,11],[24,12,25,12],[24,13,25,13],[24,14,25,14],[24,15,25,15],[24,16,25,16],[24,17,25,17],[24,18,25,18],[24,19,25,19],[24,20,25,20],[24,21,25,21],[24,22,25,22],[24,23,25,23],[24,24,25,24],[24,25,25,25],[24,26,25,26],[24,27,25,27],[24,28,25,28],[24,29,25,29],[24,30,25,30],[24,31,25,31],[24,32,25,32],[24,33,25,33],[24,34,25,34],[24,35,25,35],[24,36,25,36],[24,37,25,37],[24,38,25,38],[24,39,25,39],[24,40,25,40],[24,41,25,41],[24,42,25,42],[24,43,25,43],[24,44,25,44],[24,45,25,45],[24,46,25,46],[24,47,25,47],[24,48,25,48],[24,49,25,49],[24,50,25,50],[24,51,25,51],[24,52,25,52],[27,0,28,0],[27,1,28,1],[27,2,28,2],[27,3,28,3],[27,4,28,4],[27,5,28,5],[27,6,28,6],[27,7,28,7],[27,8,28,8],[27,9,28,9],[27,10,28,10],[27,11,28,11],[27,12,28,12],[27,13,28,13],[27,14,28,14],[27,15,28,15],[27,16,28,16],[27,17,28,17],[27,18,28,18],[27,19,28,19],[27,20,28,20],[27,21,28,21],[27,22,28,22],[27,23,28,23],[27,24,28,24],[27,25,28,25],[27,26,28,26],[27,27,28,27],[27,28,28,28],[27,29,28,29],[27,30,28,30],[27,31,28,31],[27,32,28,32],[27,33,28,33],[27,34,28,34],[27,35,28,35],[27,36,28,36],[27,37,28,37],[27,38,28,38],[27,39,28,39],[27,40,28,40],[27,41,28,41],[27,42,28,42],[27,43,28,43],[27,44,28,44],[27,45,28,45],[27,46,28,46],[27,47,28,47],[27,48,28,48],[27,49,28,49],[27,50,28,50],[27,51,28,51],[27,52,28,52],[30,0,31,0],[30,1,31,1],[30,2,31,2],[30,3,31,3],[30,4,31,4],[30,5,31,5],[30,6,31,6],[30,7,31,7],[30,8,31,8],[30,9,31,9],[30,10,31,10],[30,11,31,11],[30,12,31,12],[30,13,31,13],[30,14,31,14],[30,15,31,15],[30,16,31,16],[30,17,31,17],[30,18,31,18],[30,19,31,19],[30,20,31,20],[30,21,31,21],[30,22,31,22],[30,23,31,23],[30,24,31,24],[30,25,31,25],[30,26,31,26],[30,27,31,27],[30,28,31,28],[30,29,31,29],[30,30,31,30],[30,31,31,31],[30,32,31,32],[30,33,31,33],[30,34,31,34],[30,35,31,35],[30,36,31,36],[30,37,31,37],[30,38,31,38],[30,39,31,39],[30,40,31,40],[30,41,31,41],[30,42,31,42],[30,43,31,43],[30,44,31,44],[30,45,31,45],[30,46,31,46],[30,47,31,47],[30,48,31,48],[30,49,31,49],[30,50,31,50],[30,51,31,51],[30,52,31,52],[33,0,34,0],[33,1,34,1],[33,2,34,2],[33,3,34,3],[33,4,34,4],[33,5,34,5],[33,6,34,6],[33,7,34,7],[33,8,34,8],[33,9,34,9],[33,10,34,10],[33,11,34,11],[33,12,34,12],[33,13,34,13],[33,14,34,14],[33,15,34,15],[33,16,34,16],[33,17,34,17],[33,18,34,18],[33,19,34,19],[33,20,34,20],[33,21,34,21],[33,22,34,22],[33,23,34,23],[33,24,34,24],[33,25,34,25],[33,26,34,26],[33,27,34,27],[33,28,34,28],[33,29,34,29],[33,30,34,30],[33,31,34,31],[33,32,34,32],[33,33,34,33],[33,34,34,34],[33,35,34,35],[33,36,34,36],[33,37,34,37],[33,38,34,38],[33,39,34,39],[33,40,34,40],[33,41,34,41],[33,42,34,42],[33,43,34,43],[33,44,34,44],[33,45,34,45],[33,46,34,46],[33,47,34,47],[33,48,34,48],[33,49,34,49],[33,50,34,50],[33,51,34,51],[33,52,34,52],[36,0,37,0],[36,1,37,1],[36,2,37,2],[36,3,37,3],[36,4,37,4],[36,5,37,5],[36,6,37,6],[36,7,37,7],[36,8,37,8],[36,9,37,9],[36,10,37,10],[36,11,37,11],[36,12,37,12],[36,13,37,13],[36,14,37,14],[36,15,37,15],[36,16,37,16],[36,17,37,17],[36,18,37,18],[36,19,37,19],[36,20,37,20],[36,21,37,21],[36,22,37,22],[36,23,37,23],[36,24,37,24],[36,25,37,25],[36,26,37,26],[36,27,37,27],[36,28,37,28],[36,29,37,29],[36,30,37,30],[36,31,37,31],[36,32,37,32],[36,33,37,33],[36,34,37,34],[36,35,37,35],[36,46,37,46],[36,47,37,47],[36,36,37,36],[36,37,37,37],[36,38,37,38],[36,39,37,39],[36,40,37,40],[36,41,37,41],[36,48,37,48],[36,49,37,49],[36,50,37,50],[36,51,37,51],[36,52,37,52],[38,1,38,52],[36,42,37,42],[36,43,37,43],[36,44,37,44],[36,45,37,45],[39,0,44,0],[39,1,44,1],[39,2,44,2],[39,3,44,3],[39,4,44,4],[39,5,44,5],[39,6,44,6],[39,7,44,7],[39,8,44,8],[39,9,44,9],[39,10,44,10],[39,11,44,11],[39,12,44,12],[39,13,44,13],[39,14,44,14],[39,15,44,15],[39,16,44,16],[39,17,44,17],[39,18,44,18],[39,19,44,19],[39,20,44,20],[39,21,44,21],[39,22,44,22],[39,23,44,23],[39,24,44,24],[39,25,44,25],[39,26,44,26],[39,27,44,27],[39,28,44,28],[39,29,44,29],[39,30,44,30],[39,31,44,31],[39,32,44,32],[39,33,44,33],[39,34,44,34],[39,35,44,35],[39,46,44,46],[39,47,44,47],[39,36,44,36],[39,37,44,37],[39,38,44,38],[39,39,44,39],[39,40,44,40],[39,41,44,41],[39,48,44,48],[39,49,44,49],[39,50,44,50],[39,51,44,51],[39,52,44,52],[45,1,45,52],[39,42,44,42],[39,43,44,43],[39,44,44,44],[39,45,44,45],[46,0,51,0],[46,1,51,1],[46,2,51,2],[46,3,51,3],[46,4,51,4],[46,5,51,5],[46,6,51,6],[46,7,51,7],[46,8,51,8],[46,9,51,9],[46,10,51,10],[46,11,51,11],[46,12,51,12],[46,13,51,13],[46,14,51,14],[46,15,51,15],[46,16,51,16],[46,17,51,17],[46,18,51,18],[46,19,51,19],[46,20,51,20],[46,21,51,21],[46,22,51,22],[46,23,51,23],[46,24,51,24],[46,25,51,25],[46,26,51,26],[46,27,51,27],[46,28,51,28],[46,29,51,29],[46,30,51,30],[46,31,51,31],[46,32,51,32],[46,33,51,33],[46,34,51,34],[46,35,51,35],[46,46,51,46],[46,47,51,47],[46,36,51,36],[46,37,51,37],[46,38,51,38],[46,39,51,39],[46,40,51,40],[46,41,51,41],[46,48,51,48],[46,49,51,49],[46,50,51,50],[46,51,51,51],[46,52,51,52],[52,1,52,52],[46,42,51,42],[46,43,51,43],[46,44,51,44],[46,45,51,45],[53,0,58,0],[53,1,58,1],[53,2,58,2],[53,3,58,3],[53,4,58,4],[53,5,58,5],[53,6,58,6],[53,7,58,7],[53,8,58,8],[53,9,58,9],[53,10,58,10],[53,11,58,11],[53,12,58,12],[53,13,58,13],[53,14,58,14],[53,15,58,15],[53,16,58,16],[53,17,58,17],[53,18,58,18],[53,19,58,19],[53,20,58,20],[53,21,58,21],[53,22,58,22],[53,23,58,23],[53,24,58,24],[53,25,58,25],[53,26,58,26],[53,27,58,27],[53,28,58,28],[53,29,58,29],[53,30,58,30],[53,31,58,31],[53,32,58,32],[53,33,58,33],[53,34,58,34],[53,35,58,35],[53,46,58,46],[53,47,58,47],[53,36,58,36],[53,37,58,37],[53,38,58,38],[53,39,58,39],[53,40,58,40],[53,41,58,41],[53,48,58,48],[53,49,58,49],[53,50,58,50],[53,51,58,51],[53,52,58,52],[59,1,59,52],[53,42,58,42],[53,43,58,43],[53,44,58,44],[53,45,58,45],[60,0,65,0],[60,1,65,1],[60,2,65,2],[60,3,65,3],[60,4,65,4],[60,5,65,5],[60,6,65,6],[60,7,65,7],[60,8,65,8],[60,9,65,9],[60,10,65,10],[60,11,65,11],[60,12,65,12],[60,13,65,13],[60,14,65,14],[60,15,65,15],[60,16,65,16],[60,17,65,17],[60,18,65,18],[60,19,65,19],[60,20,65,20],[60,21,65,21],[60,22,65,22],[60,23,65,23],[60,24,65,24],[60,25,65,25],[60,26,65,26],[60,27,65,27],[60,28,65,28],[60,29,65,29],[60,30,65,30],[60,31,65,31],[60,32,65,32],[60,33,65,33],[60,34,65,34],[60,35,65,35],[60,46,65,46],[60,47,65,47],[60,36,65,36],[60,37,65,37],[60,38,65,38],[60,39,65,39],[60,40,65,40],[60,41,65,41],[60,48,65,48],[60,49,65,49],[60,50,65,50],[60,51,65,51],[60,52,65,52],[66,1,66,52],[60,42,65,42],[60,43,65,43],[60,44,65,44],[60,45,65,45],[67,0,72,0],[67,1,72,1],[67,2,72,2],[67,3,72,3],[67,4,72,4],[67,5,72,5],[67,6,72,6],[67,7,72,7],[67,8,72,8],[67,9,72,9],[67,10,72,10],[67,11,72,11],[67,12,72,12],[67,13,72,13],[67,14,72,14],[67,15,72,15],[67,16,72,16],[67,17,72,17],[67,18,72,18],[67,19,72,19],[67,20,72,20],[67,21,72,21],[67,22,72,22],[67,23,72,23],[67,24,72,24],[67,25,72,25],[67,26,72,26],[67,27,72,27],[67,28,72,28],[67,29,72,29],[67,30,72,30],[67,31,72,31],[67,32,72,32],[67,33,72,33],[67,34,72,34],[67,35,72,35],[67,46,72,46],[67,47,72,47],[67,36,72,36],[67,37,72,37],[67,38,72,38],[67,39,72,39],[67,40,72,40],[67,41,72,41],[67,48,72,48],[67,49,72,49],[67,50,72,50],[67,51,72,51],[67,52,72,52],[73,1,73,52],[67,42,72,42],[67,43,72,43],[67,44,72,44],[67,45,72,45],[74,0,79,0],[74,1,79,1],[74,2,79,2],[74,3,79,3],[74,4,79,4],[74,5,79,5],[74,6,79,6],[74,7,79,7],[74,8,79,8],[74,9,79,9],[74,10,79,10],[74,11,79,11],[74,12,79,12],[74,13,79,13],[74,14,79,14],[74,15,79,15],[74,16,79,16],[74,17,79,17],[74,18,79,18],[74,19,79,19],[74,20,79,20],[74,21,79,21],[74,22,79,22],[74,23,79,23],[74,24,79,24],[74,25,79,25],[74,26,79,26],[74,27,79,27],[74,28,79,28],[74,29,79,29],[74,30,79,30],[74,31,79,31],[74,32,79,32],[74,33,79,33],[74,34,79,34],[74,35,79,35],[74,46,79,46],[74,47,79,47],[74,36,79,36],[74,37,79,37],[74,38,79,38],[74,39,79,39],[74,40,79,40],[74,41,79,41],[74,48,79,48],[74,49,79,49],[74,50,79,50],[74,51,79,51],[74,52,79,52],[80,1,80,52],[74,42,79,42],[74,43,79,43],[74,44,79,44],[74,45,79,45],[81,0,86,0],[81,1,86,1],[81,2,86,2],[81,3,86,3],[81,4,86,4],[81,5,86,5],[81,6,86,6],[81,7,86,7],[81,8,86,8],[81,9,86,9],[81,10,86,10],[81,11,86,11],[81,12,86,12],[81,13,86,13],[81,14,86,14],[81,15,86,15],[81,16,86,16],[81,17,86,17],[81,18,86,18],[81,19,86,19],[81,20,86,20],[81,21,86,21],[81,22,86,22],[81,23,86,23],[81,24,86,24],[81,25,86,25],[81,26,86,26],[81,27,86,27],[81,28,86,28],[81,29,86,29],[81,30,86,30],[81,31,86,31],[81,32,86,32],[81,33,86,33],[81,34,86,34],[81,35,86,35],[81,46,86,46],[81,47,86,47],[81,36,86,36],[81,37,86,37],[81,38,86,38],[81,39,86,39],[81,40,86,40],[81,41,86,41],[81,48,86,48],[81,49,86,49],[81,50,86,50],[81,51,86,51],[81,52,86,52],[87,1,87,52],[81,42,86,42],[81,43,86,43],[81,44,86,44],[81,45,86,45],[88,0,93,0],[88,1,93,1],[88,2,93,2],[88,3,93,3],[88,4,93,4],[88,5,93,5],[88,6,93,6],[88,7,93,7],[88,8,93,8],[88,9,93,9]],"merged_total":2153,"flags":["merged_cut"]}
[]
["1 Календарный учебный график"]
["Курс","Сентябрь",null,null,null,"1-7","Октябрь",null,null,"29-4 нояб","Ноябрь",null,null,null,"Декабрь",null,null,null,"1-6","Январь",null,null,"28-3 фев","Февраль",null,null,"25-3 мар","Март",null,null,null,"1  -  7","Апрель",null,null,"29-5 мая","Май",null,null,null,"Июнь",null,null,null,"1-7","Июль",null,null,"29-4","Август"]
[null,"3  -   9","10 - 16","17 - 23","24 - 30",null,"8-14","15-21","22-28",null,"5-11","13-18","19-25","26-2 дек","3-9","10-16","17-23","24-30",null,"7-13","14-20","21-27",null,"4-10","11-17","18-24",null,"4-10","11-17","18-24","25-30",null,"8-14","15-21","22-28",null,"6-12","13-19","20-26","27-2 июн","3-9","10 -16","17-23","24-30",null,"8 -14","15 -21","22-28",null,"5-11","12-18","19-25","26-1"]
[null,"1","2","3","4","5","6","7","8","9","10","11","12","13","14","15","16","17","18","19","20","21","22","23","24","25","26","27","28","29","30","31","32","33","34","35","36","37","38","39","40","41","42","43","44","45","46","47","48","49","50","51","52"]
[]
["I"]
[]
[]
["II"]
[]
[]
["III"]
[]
[]
["IV"]
[]
[]
["V"]
[]
[]
["VI"]
[]
[]
["VII"]
[]
[]
["VIII"]
[]
[]
["IX"]
[]
[]
["X"]
[]
[]
["XI"]
[]
[]
["I",null,null,null,null,null,null,null,null,null,null,null,null,null,null,null,null,null,"=","=",null,null,null,null,null,null,null,null,null,null,null,null,null,null,null,null,null,null,null,null,null,null,"::","::","=","=","=","=","=","=","=","=","="]
[]
[]
[]
[]
[]
[]
["II",null,null,null,null,null,null,null,null,null,null,null,null,null,null,null,null,"::","=","=",null,null,null,null,null,null,null,null,null,null,null,null,null,null,null,null,null,null,null,"::",0,0,0,8,"=","=","=","=","=","=","=","=","="]
[]
[]
[]
[]
[]
[]
["III",null,null,null,null,null,null,null,null,null,null,null,null,null,null,null,"::","0","=","=",null,null,null,null,null,null,null,null,null,null,null,"8","8","8","X","X","X","X","D","D","D","D","III","III","*","*","*","*","*","*","*","*","*"]
[]
[]
[]
[]
[]
[]
["IV","*","*","*","*","*","*","*","*","*","*","*","*","*","*","*","*","*","*","*","*","*","*","*","*","*","*","*","*","*","*","*","*","*","*","*","*","*","*","*","*","*","*","*","*","*","*","*","*","*","*","*","*"]
[]
[]
[]
[]
[]
[]
["V","*","*","*","*","*","*","*","*","*","*","*","*","*","*","*","*","*","*","*","*","*","*","*","*","*","*","*","*","*","*","*","*","*","*","*","*","*","*","*","*","*","*","*","*","*","*","*","*","*","*","*","*"]
[]
[]
[]
[]
[]
[]
["VI","*","*","*","*","*","*","*","*","*","*","*","*","*","*","*","*","*","*","*","*","*","*","*","*","*","*","*","*","*","*","*","*","*","*","*","*","*","*","*","*","*","*","*","*","*","*","*","*","*","*","*","*"]
[]
[]
[]
[]
[]
[]
["VII","*","*","*","*","*","*","*","*","*","*","*","*","*","*","*","*","*","*","*","*","*","*","*","*","*","*","*","*","*","*","*","*","*","*","*","*","*","*","*","*","*","*","*","*","*","*","*","*","*","*","*","*"]
[]
[]
[]
[]
[]
[]
["VIII","*","*","*","*","*","*","*","*","*","*","*","*","*","*","*","*","*","*","*","*","*","*","*","*","*","*","*","*","*","*","*","*","*","*","*","*","*","*","*","*","*","*","*","*","*","*","*","*","*","*","*","*"]
[]
[]
[]
[]
[]
[]
["IX","*","*","*","*","*","*","*","*","*","*","*","*","*","*","*","*","*","*","*","*","*","*","*","*","*","*","*","*","*","*","*","*","*","*","*","*","*","*","*","*","*","*","*","*","*","*","*","*","*","*","*","*"]
[]
[]
[]
[]
[]
[]
["X","*","*","*","*","*","*","*","*","*","*","*","*","*","*","*","*","*","*","*","*","*","*","*","*","*","*","*","*","*","*","*","*","*","*","*","*","*","*","*","*","*","*","*","*","*","*","*","*","*","*","*","*"]
[]
[]
[]
[]
[]
[]
["XI","*","*","*","*","*","*","*","*","*","*","*","*","*","*","*","*","*","*","*","*","*","*","*","*","*","*","*","*","*","*","*","*","*","*","*","*","*","*","*","*","*","*","*","*","*","*","*","*","*","*","*","*"]
[]
[]
[]
[]
[]
[]
["Обозначения:",null,null,null,null,null,null,"   Обучение по дисциплинам и междисциплинарным курсам",null,null,null,null,null,null,null,null,null,null,null,null,null,null,null,null,"0","   Учебная практика",null,null,null,null,null,null,null,null,null,null,null,null,null,null,null,null,null,"D","   Подготовка к государственной итоговой аттестации"]
[]
[null,null,null,null,null,null,"::","   Промежуточная аттестация",null,null,null,null,null,null,null,null,null,null,null,null,null,null,null,null,"8","   Производственная практика (по профилю специальности)",null,null,null,null,null,null,null,null,null,null,null,null,null,null,null,null,null,"III","   Государственная итоговая аттестация"]
[]
[null,null,null,null,null,null,"=","   Каникулы",null,null,null,null,null,null,null,null,null,null,null,null,null,null,null,null,"X","   Производственная практика (преддипломная)",null,null,null,null,null,null,null,null,null,null,null,null,null,null,null,null,null,"*","   Неделя отсутствует"]
[]
["2 Сводные данные по бюджету времени"]
[]
["Курс","Обучение по дисциплинам и междисциплинарным курсам",null,null,null,null,null,null,null,null,null,null,null,null,null,null,null,null,null,"Промежуточная аттестация",null,null,null,null,null,null,null,null,"Практики",null,null,null,null,null,null,null,null,null,null,null,null,null,null,null,null,null,null,null,null,"ГИА",null,null,null,null,null,"Каникулы",null,null,"Всего",null,null,"Студентов",null,null,null,"Групп"]
[null,null,null,null,null,null,null,null,null,null,null,null,null,null,null,null,null,null,null,null,null,null,null,null,null,null,null,null,"Учебная практика",null,null,null,null,null,null,"Производственная практика (по профилю специальности)",null,null,null,null,null,null,"Производственная практика (преддипломная)",null,null,null,null,null,null,"Подго-\r\nтовка",null,null,"Прове-\r\nдение"]
[null,"Всего",null,null,null,null,null,"1 сем",null,null,null,null,null,"2 сем",null,null,null,null,null,"Всего",null,null,"1 сем",null,null,"2 сем",null,null,"Всего",null,null,"1 сем",null,"2 сем",null,"Всего",null,null,"1 сем",null,"2 сем",null,"Всего",null,null,"1 сем",null,"2 сем"]
[null,"нед.",null,null,"час. обяз. уч. занятий",null,null,"нед.",null,null,"час. обяз. уч. занятий",null,null,"нед.",null,null,"час. обяз. уч. занятий",null,null,"нед.",null,null,"нед.",null,null,"нед.",null,null,"нед.",null,null,"нед.",null,"нед.",null,"нед.",null,null,"нед.",null,"нед.",null,"нед.",null,null,"нед.",null,"нед.",null,"нед.",null,null,"нед.",null,null,"нед.",null,null,"нед."]
["I","39 ",null,null,"1404",null,null,"17 ",null,null,"612",null,null,"22 ",null,null,"792",null,null,"2 ",null,null,null,null,null,"2 ",null,null,null,null,null,null,null,null,null,null,null,null,null,null,null,null,null,null,null,null,null,null,null,null,null,null,null,null,null,"11 ",null,null,"52 "]
["II","35 ",null,null,"1260",null,null,"16 ",null,null,"576",null,null,"19 ",null,null,"684",null,null,"2 ",null,null,"1 ",null,null,"1 ",null,null,"3 ",null,null,null,null,"3 ",null,"1 ",null,null,null,null,"1 ",null,null,null,null,null,null,null,null,null,null,null,null,null,null,"11 ",null,null,"52 "]
["III","26 ",null,null,"936",null,null,"15 ",null,null,"540",null,null,"11 ",null,null,"396",null,null,"1 ",null,null,"1 ",null,null,null,null,null,"1 ",null,null,"1 ",null,null,null,"3 ",null,null,null,null,"3 ",null,"4 ",null,null,null,null,"4 ",null,"4 ",null,null,"2 ",null,null,"2 ",null,null,"43 "]
["IV"]
["V"]
["VI"]
["VII"]
["VIII"]
["IX"]
["X"]
["XI"]
["Всего","100 ",null,null,"3600",null,null,null,null,null,"1728",null,null,null,null,null,"1872",null,null,"5 ",null,null,null,null,null,null,null,null,"4 ",null,null,null,null,null,null,"4 ",null,null,null,null,null,null,"4 ",null,null,null,null,null,null,"4 ",null,null,"2 ",null,null,"24 ",null,null,"147 "]
[]
["Курс","Обучение по дисциплинам и междисциплинарным курсам, в том числе учебная практика",null,null,null,null,null,null,null,null,null,null,null,null,null,null,null,null,null,"Промежуточная аттестация",null,null,null,null,null,null,null,null,"Практики",null,null,null,null,null,null,null,null,null,null,null,null,null,"ГИА",null,null,null,null,null,"Каникулы",null,null,"Всего",null,null,"Студентов",null,null,null,"Групп"]
[null,null,null,null,null,null,null,null,null,null,null,null,null,null,null,null,null,null,null,null,null,null,null,null,null,null,null,null,"Производственная практика (по профилю специальности)",null,null,null,null,null,null,"Производственная практика (преддипломная)",null,null,null,null,null,null,"Подго-\r\nтовка",null,null,"Прове-\r\nдение"]
[null,"Всего",null,null,null,null,null,"1 сем",null,null,null,null,null,"2 сем",null,null,null,null,null,"Всего",null,null,"1 сем",null,null,"2 сем",null,null,"Всего",null,null,"1 сем",null,"2 сем",null,"Всего",null,null,"1 сем",null,"2 сем"]
[null,"нед.",null,null,"час. обяз. уч. занятий",null,null,"нед.",null,null,"час. обяз. уч. занятий",null,null,"нед.",null,null,"час. обяз. уч. занятий",null,null,"нед.",null,null,"нед.",null,null,"нед.",null,null,"нед.",null,null,"нед.",null,"нед.",null,"нед.",null,null,"нед.",null,"нед.",null,"нед.",null,null,"нед.",null,null,"нед.",null,null,"нед."]
["I"]
["II"]
["III"]
["IV"]
["V"]
["VI"]
["VII"]
["VIII"]
["IX"]
["X"]
["XI"]
["Всего"]
[]
["Курс","Обучение по циклам и разделу \"Физическая культура\"",null,null,null,null,null,null,null,null,null,null,null,null,null,null,null,null,null,"Промежуточная аттестация",null,null,null,null,null,null,null,null,"Практики",null,null,null,null,null,null,null,null,null,null,null,null,null,"ГИА",null,null,"Каникулы",null,null,"Всего",null,null,"Студентов",null,null,null,"Групп"]
[null,null,null,null,null,null,null,null,null,null,null,null,null,null,null,null,null,null,null,null,null,null,null,null,null,null,null,null,"Учебная практика (Производственное обучение)",null,null,null,null,null,null,"Производственная практика",null,null,null,null,null,null,"Прове-\r\nдение"]
[null,"Всего",null,null,null,null,null,"1 сем",null,null,null,null,null,"2 сем",null,null,null,null,null,"Всего",null,null,"1 сем",null,null,"2 сем",null,null,"Всего",null,null,"1 сем",null,"2 сем",null,"Всего",null,null,"1 сем",null,"2 сем"]
[null,"нед.",null,null,"час. обяз. уч. зан.",null,null,"нед.",null,null,"час. обяз. уч. зан.",null,null,"нед.",null,null,"час. обяз. уч. зан.",null,null,"нед.",null,null,"нед.",null,null,"нед.",null,null,"нед.",null,null,"нед.",null,"нед.",null,"нед.",null,null,"нед.",null,"нед.",null,"нед.",null,null,"нед.",null,null,"нед."]
["I"]
["II"]
["III"]
["IV"]
["V"]
["Всего"]
[]
["Курс","Обучение по циклам и разделу \"Физическая культура\", в том числе учебная практика ",null,null,null,null,null,null,null,null,null,null,null,null,null,null,null,null,null,"Промежуточная аттестация",null,null,null,null,null,null,null,null,"Практики",null,null,null,null,null,null,"ГИА",null,null,"Каникулы",null,null,"Всего",null,null,"Студентов",null,null,null,"Групп"]
[null,null,null,null,null,null,null,null,null,null,null,null,null,null,null,null,null,null,null,null,null,null,null,null,null,null,null,null,"Производственная практика",null,null,null,null,null,null,"Прове-\r\nдение"]
[null,"Всего",null,null,null,null,null,"1 сем",null,null,null,null,null,"2 сем",null,null,null,null,null,"Всего",null,null,"1 сем",null,null,"2 сем",null,null,"Всего",null,null,"1 сем",null,"2 сем"]
[null,"нед.",null,null,"час. обяз. уч. зан.",null,null,"нед.",null,null,"час. обяз. уч. зан.",null,null,"нед.",null,null,"час. обяз. уч. зан.",null,null,"нед.",null,null,"нед.",null,null,"нед.",null,null,"нед.",null,null,"нед.",null,"нед.",null,"нед.",null,null,"нед.",null,null,"нед."]
["I"]
["II"]
["III"]
["IV"]
["V"]
["Всего"]

{"sheet":"План","index":2,"n_rows":131,"n_cols":72,"rows_kept":131,"cut":false,"hidden":false,"merged":[[108,8,108,14],[130,1,130,18],[129,1,129,18],[128,1,128,18],[127,1,127,18],[113,2,113,14],[111,2,111,14],[112,2,112,14],[112,16,112,18],[113,16,113,18],[87,0,87,1],[0,0,5,0],[0,1,5,1],[0,2,1,7],[0,8,1,18],[0,19,0,64],[1,19,1,32],[1,33,1,48],[1,49,1,64],[2,2,5,2],[2,3,5,3],[2,4,5,4],[2,5,5,5],[2,6,5,6],[2,7,5,7],[2,9,5,9],[2,11,5,11],[2,12,5,12],[2,14,2,18],[2,19,2,25],[2,26,2,32],[4,21,5,21],[4,22,4,25],[4,26,5,26],[4,29,4,32],[2,33,2,40],[2,41,2,48],[2,49,2,56],[2,57,2,64],[3,14,5,14],[3,15,3,18],[3,19,3,25],[3,26,3,32],[3,33,3,40],[3,41,3,48],[3,49,3,56],[3,57,3,64],[4,15,5,15],[4,16,5,16],[4,17,5,17],[4,18,5,18],[4,19,5,19],[4,20,5,20],[4,27,5,27],[4,28,5,28],[4,33,5,33],[4,34,5,34],[4,35,5,35],[4,36,5,36],[4,37,4,40],[4,41,5,41],[4,42,5,42],[4,43,5,43],[4,44,5,44],[4,45,4,48],[4,49,5,49],[4,50,5,50],[4,51,5,51],[4,52,5,52],[4,53,4,56],[4,57,5,57],[4,58,5,58],[4,59,5,59],[4,60,5,60],[4,61,4,64],[4,66,5,66],[4,67,5,67],[4,68,5,68],[4,69,5,69],[0,65,5,65],[0,66,3,67],[0,68,3,69],[8,1,8,18],[76,16,76,17],[76,19,76,20],[76,24,76,25],[76,26,76,27],[76,31,76,32],[76,33,76,34],[76,39,76,40],[76,41,76,42],[76,47,76,48],[76,49,76,50],[76,55,76,56],[76,57,76,58],[76,63,76,64],[77,16,77,17],[77,19,77,20],[77,24,77,25],[77,26,77,27],[77,31,77,32],[77,33,77,34],[77,39,77,40],[77,41,77,42],[77,47,77,48],[77,49,77,50],[77,55,77,56],[77,57,77,58],[77,63,77,64],[83,16,83,17],[83,19,83,20],[83,24,83,25],[83,26,83,27],[83,31,83,32],[83,33,83,34],[83,39,83,40],[83,41,83,42],[83,47,83,48],[83,49,83,50],[83,55,83,56],[83,57,83,58],[83,63,83,64],[84,16,84,17],[84,19,84,20],[84,24,84,25],[84,26,84,27],[84,31,84,32],[84,33,84,34],[84,39,84,40],[84,41,84,42],[84,47,84,48],[84,49,84,50],[84,55,84,56],[84,57,84,58],[84,63,84,64],[93,16,93,17],[93,19,93,20],[93,24,93,25],[93,26,93,27],[93,31,93,32],[93,33,93,34],[93,39,93,40],[93,41,93,42],[93,47,93,48],[93,49,93,50],[93,55,93,56],[93,57,93,58],[93,63,93,64],[94,16,94,17],[94,19,94,20],[94,24,94,25],[94,26,94,27],[94,31,94,32],[94,33,94,34],[94,39,94,40],[94,41,94,42],[94,47,94,48],[94,49,94,50],[94,55,94,56],[94,57,94,58],[94,63,94,64],[98,2,98,7],[98,9,98,11],[98,16,98,18],[98,19,98,20],[98,23,98,25],[98,26,98,27],[98,30,98,32],[98,33,98,34],[98,38,98,40],[98,41,98,42],[98,46,98,48],[98,49,98,50],[98,54,98,56],[98,57,98,58],[98,62,98,64],[100,2,100,7],[100,9,100,11],[100,16,100,18],[100,19,100,20],[100,23,100,25],[100,26,100,27],[100,30,100,32],[100,33,100,34],[100,38,100,40],[100,41,100,42],[100,46,100,48],[100,49,100,50],[100,54,100,56],[100,57,100,58],[100,62,100,64],[101,2,101,7],[101,9,101,11],[101,16,101,18],[101,19,101,20],[101,23,101,25],[101,26,101,27],[101,30,101,32],[101,33,101,34],[101,38,101,40],[101,41,101,42],[101,46,101,48],[101,49,101,50],[101,54,101,56],[101,57,101,58],[101,62,101,64],[102,2,102,7],[102,9,102,11],[102,16,102,18],[102,19,102,20],[102,23,102,25],[102,26,102,27],[102,30,102,32],[102,33,102,34],[102,38,102,40],[102,41,102,42],[102,46,102,48],[102,49,102,50],[102,54,102,56],[102,57,102,58],[102,62,102,64],[104,2,104,7],[104,9,104,11],[104,16,104,18],[104,19,104,20],[104,23,104,25],[104,26,104,27],[104,30,104,32],[104,33,104,34],[104,38,104,40],[104,41,104,42],[104,46,104,48],[104,49,104,50],[104,54,104,56],[104,57,104,58],[104,62,104,64],[105,2,105,7],[105,9,105,11],[105,16,105,18],[105,19,105,20],[105,23,105,25],[105,26,105,27],[105,30,105,32],[105,33,105,34],[105,38,105,40],[105,41,105,42],[105,46,105,48],[105,49,105,50],[105,54,105,56],[105,57,105,58],[105,62,105,64],[106,2,106,7],[106,9,106,11],[106,16,106,18],[106,19,106,20],[106,23,106,25],[106,26,106,27],[106,30,106,32],[106,33,106,34],[106,38,106,40],[106,41,106,42],[106,46,106,48],[106,49,106,50],[106,54,106,56],[106,57,106,58],[106,62,106,64],[108,16,108,18],[108,19,108,21],[108,23,108,25],[108,26,108,28],[108,30,108,32],[108,33,108,36],[108,38,108,40],[108,41,108,44],[108,46,108,48],[108,49,108,52],[108,54,108,56],[108,57,108,60],[108,62,108,64],[110,2,110,14],[110,16,110,18],[110,19,110,21],[110,23,110,25],[110,26,110,28],[110,30,110,32],[110,33,110,36],[110,38,110,40],[110,41,110,44],[110,46,110,48],[110,49,110,52],[110,54,110,56],[110,57,110,60],[110,62,110,64],[111,16,111,18],[111,19,111,21],[111,24,111,25],[111,26,111,28],[111,31,111,32],[111,33,111,36],[111,39,111,40],[111,41,111,44],[111,47,111,48],[111,49,111,52],[111,55,111,56],[111,57,111,60],[111,63,111,64],[112,19,112,21],[112,24,112,25],[112,26,112,28],[112,31,112,32],[112,33,112,36],[112,39,112,40],[112,41,112,44],[112,47,112,48],[112,49,112,52],[112,55,112,56],[112,57,112,60],[112,63,112,64],[113,19,113,21],[113,24,113,25],[113,26,113,28],[113,31,113,32],[113,33,113,36],[113,39,113,40],[113,41,113,44],[113,47,113,48],[113,49,113,52],[113,55,113,56],[113,57,113,60],[113,63,113,64],[114,2,114,14],[114,16,114,18],[114,19,114,21],[114,24,114,25],[114,26,114,28],[114,31,114,32],[114,33,114,36],[114,39,114,40],[114,41,114,44],[114,47,114,48],[114,49,114,52],[114,55,114,56],[114,57,114,60],[114,63,114,64],[116,1,116,7],[116,9,116,18],[116,19,116,25],[116,26,116,32],[116,33,116,40],[116,41,116,48],[116,49,116,56],[116,57,116,64],[117,1,117,7],[117,9,117,18],[117,19,117,25],[117,26,117,32],[117,33,117,40],[117,41,117,48],[117,49,117,56],[117,57,117,64],[119,1,119,7],[119,9,119,18],[119,19,119,25],[119,26,119,32],[119,33,119,40],[119,41,119,48],[119,49,119,56],[119,57,119,64],[120,1,120,7],[120,9,120,18],[120,19,120,25],[120,26,120,32],[120,33,120,40],[120,41,120,48],[120,49,120,56],[120,57,120,64],[126,0,130,0],[126,1,126,18],[126,19,126,25],[126,26,126,32],[126,33,126,40],[126,41,126,48],[126,49,126,56],[126,57,126,64],[126,65,130,69],[127,19,127,25],[127,26,127,32],[127,33,127,40],[127,41,127,48],[127,49,127,56],[127,57,127,64],[128,19,128,25],[128,26,128,32],[128,33,128,40],[128,41,128,48],[128,49,128,56],[128,57,128,64],[129,19,129,25],[129,26,129,32],[129,33,129,40],[129,41,129,48],[129,49,129,56],[129,57,129,64],[130,19,130,25],[130,26,130,32],[130,33,130,40],[130,41,130,48],[130,49,130,56],[130,57,130,64]]}
["Индекс","Наименование циклов, разделов,\r\nдисциплин, профессиональных модулей, МДК, практик","Формы контроля",null,null,null,null,null,"Учебная нагрузка обучающихся, ч.",null,null,null,null,null,null,null,null,null,null,"Распределение по курсам и семестрам",null,null,null,null,null,null,null,null,null,null,null,null,null,null,null,null,null,null,null,null,null,null,null,null,null,null,null,null,null,null,null,null,null,null,null,null,null,null,null,null,null,null,null,null,null,"ЦМК","Максимальная учебная нагрузка",null,"Обязательная учебная нагрузка"]
[null,null,null,null,null,null,null,null,null,null,null,null,null,null,null,null,null,null,null,"Курс 1",null,null,null,null,null,null,null,null,null,null,null,null,null,"Курс 2",null,null,null,null,null,null,null,null,null,null,null,null,null,null,null,"Курс 3"]
[null,null,"Экзамены","Зачеты","Диффер. зачеты","Курсовые проекты","Курсовые работы","Другие формы контроля",null,"Максимальная",null,"Самостоятельная","Консультации",null,"Обязательная",null,null,null,null,"Семестр 1",null,null,null,null,null,null,"Семестр 2",null,null,null,null,null,null,"Семестр 3",null,null,null,null,null,null,null,"Семестр 4",null,null,null,null,null,null,null,"Семестр 5",null,null,null,null,null,null,null,"Семестр 6"]
[null,null,null,null,null,null,null,null,null,null,null,null,null,null,"Всего","в том числе",null,null,null,"17  нед",null,null,null,null,null,null,"22  нед",null,null,null,null,null,null,"16  нед",null,null,null,null,null,null,null,"19  нед",null,null,null,null,null,null,null,"15  нед",null,null,null,null,null,null,null,"11  нед"]
[null,null,null,null,null,null,null,null,null,null,null,null,null,null,null,"Теор. обучение","Пр. занятия","Лаб. занятия","Курс. проект.","Максим.","Самост.","Обязательная","в том числе",null,null,null,"Максим.","Самост.","Обязательная","в том числе",null,null,null,"Максим.","Самост.","Консульт.","Обязательная","в том числе",null,null,null,"Максим.","Самост.","Консульт.","Обязательная","в том числе",null,null,null,"Максим.","Самост.","Консульт.","Обязательная","в том числе",null,null,null,"Максим.","Самост.","Консульт.","Обязательная","в том числе",null,null,null,null,"Обяз. часть","Вар. часть","Обяз. часть","Вар. часть"]
[null,null,null,null,null,null,null,null,null,null,null,null,null,null,null,null,null,null,null,null,null,null,"Теор. обучение","Пр. занятия","Лаб. занятия","Курс. проект.",null,null,null,"Теор. обучение","Пр. занятия","Лаб. занятия","Курс. проект.",null,null,null,null,"Теор. обучение","Пр. занятия","Лаб. занятия","Курс. проект.",null,null,null,null,"Теор. обучение","Пр. занятия","Лаб. занятия","Курс. проект.",null,null,null,null,"Теор. обучение","Пр. занятия","Лаб. занятия","Курс. проект.",null,null,null,null,"Теор. обучение","Пр. занятия","Лаб. занятия","Курс. проект."]
[1,2,3,4,5,6,7,8,9,10,11,12,13,14,15,16,17,18,19,20,21,23,24,25,26,27,28,29,31,32,33,34,35,36,37,38,39,40,41,42,43,44,45,46,47,"48","49","50","51","52","53","54","55","56","57","58","59","60","61","62","63","64","65","66","67",196,"197","198","199","200"]
[]
[null,"Итого час/нед (с учетом консультаций в период обучения по циклам)",null,null,null,null,null,null,null,null,null,null,null,null,null,null,null,null,null,54,null,"36",null,null,null,null,"54",null,"36",null,null,null,null,"54",null,null,"36",null,null,null,null,"54",null,null,"36",null,null,null,null,"54",null,null,"36",null,null,null,null,"54",null,null,"36"]
["ОП","ОБЩЕОБРАЗОВАТЕЛЬНАЯ ПОДГОТОВКА",6,null,12,null,null,6,null,{"$f":"J16","v":2052},{"$f":"K16","v":0},648,0,0,1404,636,768,null,null,834.4,256.39999999999998,578,306,272,null,null,1169.6000000000004,343.6,826,330,496]
[]
["НО","Начальное общее образование"]
[]
["ОО","Основное общее образование"]
[]
["СО","Среднее (полное) общее образование",6,null,12,null,null,6,null,{"$f":"J18+J30","v":2052},{"$f":"K18+K30","v":0},648,0,0,1404,636,768,null,null,834.4,256.39999999999998,578,306,272,0,0,1169.6000000000004,343.6,826,330,496]
[]
["БД","Базовые дисциплины",{"$f":"COUNT(C19:C28)","v":5},0,6,0,0,3,null,{"$f":"SUM(J19:J28)","v":1599},{"$f":"SUM(K19:K28)","v":0},497,0,0,1102,507,595,null,null,579.4,171.4,408,221,187,null,null,971.60000000000025,277.60000000000002,694,286,408]
["БД.01","Русский язык",1.2,null,null,null,null,null,null,{"$f":"L19+O19","v":109.2},null,{"$f":"U19+AB19","v":31.200000000000003},null,null,78,39,39,null,null,{"$f":"U19+V19","v":47.6},{"$f":"V19*40%","v":13.600000000000001},{"$f":"SUM(W19:X19)","v":34},17,17,null,null,{"$f":"AB19+AC19","v":61.6},{"$f":"AC19*40%","v":17.600000000000001},44,22,22]
["БД.02","Литература",1.2,null,null,null,null,null,null,167,null,55,null,null,112,73,39,null,null,95.2,{"$f":"V20*40%","v":27.200000000000003},{"$f":"SUM(W20:X20)","v":68},51,17,null,null,61.6,{"$f":"AC20*40%","v":17.600000000000001},44,22,22]
["БД.03","История",1.2,null,null,null,null,null,null,167,null,55,null,null,112,56,56,null,null,95.2,27.200000000000003,68,34,34,null,null,61.6,17.600000000000001,44,22,22]
["БД.04","Иностранный язык",null,null,2,null,null,1,null,182,null,60,null,null,{"$f":"P22+Q22","v":122},{"$f":"W22+AD22","v":39},83,null,null,47.6,13.600000000000001,34,17,17,null,null,123.2,35.200000000000003,{"$f":"AD22+AE22","v":88},22,66]
["БД.05","Обществознание ",2,null,null,null,null,1,null,167,null,55,null,null,112,56,56,null,null,95.2,27.200000000000003,68,34,34,null,null,61.6,17.600000000000001,44,22,22]
["БД.06","Математика",2,null,1,null,null,null,null,342,null,108,null,null,234,95,139,null,null,151,49,102,51,51,null,null,184.8,52.800000000000004,132,44,88]
["БД.07","Итория Черноморского побережья",null,null,2,null,null,null,null,123.2,null,35.200000000000003,null,null,88,{"$f":"W25+AD25","v":44},44,null,null,null,null,0,null,null,null,null,123.2,35.200000000000003,88,44,44]
["БД.08","Физическая культура",null,null,1,null,null,2,null,170.8,null,48.800000000000004,null,null,122,{"$f":"W26+AD26","v":39},{"$f":"X26+AE26","v":83},null,null,47.6,13.600000000000001,34,17,17,null,null,123.2,35.200000000000003,88,22,66]
["БД.09","Основы безопасности жизнедеятельности",null,null,2,null,null,null,null,109.2,null,31.200000000000003,null,null,78,{"$f":"W27+AD27","v":44},{"$f":"X27+AE27","v":34},null,null,null,null,null,null,null,null,null,109.2,31.200000000000003,78,44,34]
["БД.10","Астрономия",null,null,2,null,null,null,null,61.6,null,17.600000000000001,null,null,44,22,22,null,null,null,null,null,null,null,null,null,61.6,17.600000000000001,44,22,22]
[]
["ПД","Профильные дисциплины",null,null,{"$f":"COUNT(E31:E33)","v":3},{"$f":"COUNT(F31:F33)","v":0},{"$f":"COUNT(G31:G33)","v":0},{"$f":"COUNT(H31:H33)","v":2},null,{"$f":"SUM(J31:J33)","v":453},null,{"$f":"SUM(L31:L33)","v":151},0,0,302,129,173,0,0,255,85,170,85,85,0,0,198,66,132,44,88]
["ПД.01","Информатика и ИКТ",null,null,2,null,null,1,null,{"$f":"L31+O31","v":168},null,{"$f":"O31*50%","v":56},null,null,{"$f":"P31+Q31","v":112},{"$f":"W31+AD31","v":34},{"$f":"X31+AE31","v":78},null,null,{"$f":"U31+V31","v":102},{"$f":"V31*50%","v":34},{"$f":"W31+X31","v":68},34,34,null,null,{"$f":"AB31+AC31","v":66},{"$f":"AC31*50%","v":22},{"$f":"AD31+AE31","v":44},null,44]
["ПД.02","Физика",null,null,2,null,null,1,null,{"$f":"L32+O32","v":183},null,{"$f":"O32*50%","v":61},null,null,{"$f":"P32+Q32","v":122},{"$f":"W32+AD32","v":61},{"$f":"X32+AE32","v":61},null,null,{"$f":"U32+V32","v":51},{"$f":"V32*50%","v":17},{"$f":"W32+X32","v":34},17,17,null,null,{"$f":"AB32+AC32","v":132},{"$f":"AC32*50%","v":44},{"$f":"AD32+AE32","v":88},44,44]
["ПД.03","География ",null,null,1,null,null,null,null,{"$f":"L33+O33","v":102},null,{"$f":"O33*50%","v":34},null,null,68,34,34,null,null,{"$f":"U33+V33","v":102},{"$f":"V33*50%","v":34},{"$f":"W33+X33","v":68},34,34]
[]
[]
[null,null,null,null,null,null,null,null,null,null,null,null,null,null,null,null,null,null,null,null,null,null,null,null,null,null,null,null,null,null,null,null,null,null,null,null,null,null,null,null,null,null,null,null,null,null,null,null,null,null,null,null,null,null,null,null,null,null,null,null,null,null,null,null,null,null,"68,9%","31,1%","68,9%","31,1%"]
["ПП","ПРОФЕССИОНАЛЬНАЯ ПОДГОТОВКА",16,7,17,null,null,8,null,{"$f":"J39+J46+J50","v":3301},{"$f":"K39+K46+K50","v":0},1163,0,0,2212,887,1351,0,20,null,null,null,null,null,null,null,null,null,null,null,null,null,null,943,324,0,619,252,367,0,0,1035.5,354.5,0,681,273,408,0,0,835,283,0,552,214,318,0,20,565,193,0,372,131,241,0,0,0,{"$f":"BO39+BO46+BO50","v":2268},{"$f":"BP39+BP46+BP50","v":1026},{"$f":"BQ39+BQ46+BQ50","v":1512},{"$f":"BR39+BR46+BR50","v":684}]
[]
["ОГСЭ","Общий гуманитарный и социально-экономический цикл",null,5,{"$f":"COUNT(E40:E44)","v":5},null,null,2,null,{"$f":"SUM(J40:J44)","v":689},0,266,0,0,423,{"$f":"SUM(P40:P44)","v":96},327,0,0,null,null,null,null,null,null,null,null,null,null,null,null,null,null,352,128,0,224,96,128,null,null,161.5,66.5,0,95,0,95,0,0,105,45,0,60,0,60,0,0,77,33,0,44,0,44,null,null,null,{"$f":"SUM(BO40:BO44)","v":510},{"$f":"SUM(BP40:BP44)","v":179},{"$f":"SUM(BQ40:BQ44)","v":340},{"$f":"SUM(BR40:BR44)","v":77}]
["ОГСЭ.01","Основы философии",null,null,3,null,null,null,null,{"$f":"SUM(L40:O40)","v":68},null,20,null,null,{"$f":"AK40+AS40+BA40+BI40","v":48},32,16,null,null,null,null,null,null,null,null,null,null,null,null,null,null,null,null,{"$f":"AI40+AK40","v":72},{"$f":"AK40*50%","v":24},null,48,32,16,null,null,null,null,null,null,null,null,null,null,null,null,null,null,null,null,null,null,null,null,null,null,null,null,null,null,null,62,6,48]
["ОГСЭ.02","История",null,null,3,null,null,null,null,{"$f":"SUM(L41:O41)","v":70},null,22,null,null,48,32,16,null,null,null,null,null,null,null,null,null,null,null,null,null,null,null,null,{"$f":"AI41+AK41","v":72},{"$f":"AK41*50%","v":24},null,48,32,16,null,null,null,null,null,null,null,null,null,null,null,null,null,null,null,null,null,null,null,null,null,null,null,null,null,null,null,62,8,48]
["ОГСЭ.03","Иностранный язык",6,null,5,null,null,3.4,null,{"$f":"SUM(L42:O42)","v":211},null,70,null,null,141,0,141,null,null,null,null,null,null,null,null,null,null,null,null,null,null,null,null,{"$f":"AI42+AK42","v":48},{"$f":"AK42*50%","v":16},null,32,null,32,null,null,{"$f":"AQ42+AS42","v":85.5},{"$f":"AS42*50%","v":28.5},null,57,null,57,null,null,{"$f":"AY42+BA42","v":45},{"$f":"BA42*50%","v":15},null,30,null,30,null,null,{"$f":"BG42+BI42","v":33},{"$f":"BI42*50%","v":11},null,22,null,22,null,null,null,142,69,122,13]
["ОГСЭВ.04","Русский язык и культура речи",null,null,3,null,null,null,null,{"$f":"SUM(L43:O43)","v":96},null,32,null,null,64,32,32,null,null,null,null,null,null,null,null,null,null,null,null,null,null,null,null,{"$f":"AI43+AK43","v":96},{"$f":"AK43*50%","v":32},null,64,32,32,null,null,null,null,null,null,null,null,null,null,null,null,null,null,null,null,null,null,null,null,null,null,null,null,null,null,null,null,96,null,64]
["ОГСЭ.05","Физическая культура",6,null,4.5,null,null,3,null,{"$f":"SUM(L44:O44)","v":244},null,122,null,null,122,0,122,null,null,null,null,null,null,null,null,null,null,null,null,null,null,null,null,{"$f":"AI44+AK44","v":64},32,null,32,null,32,null,null,{"$f":"AQ44+AS44","v":76},38,null,38,null,38,null,null,{"$f":"AY44+BA44","v":60},30,null,30,null,30,null,null,{"$f":"BG44+BI44","v":44},22,null,22,null,22,null,null,null,244,null,122]
[]
["ЕН","Математический и общий естественнонаучный цикл",null,null,1,null,null,1,null,{"$f":"SUM(J47:J49)","v":201},{"$f":"SUM(K47:K49)","v":0},69,0,0,130,65,65,0,0,47.6,13.600000000000001,34,17,17,0,0,0,0,0,0,0,0,0,150,54,0,96,48,48,0,0,0,0,0,0,0,0,0,0,null,null,null,null,null,null,null,null,null,null,null,null,null,null,null,null,null,{"$f":"SUM(BO47:BO49)","v":150},{"$f":"SUM(BP47:BP49)","v":51},{"$f":"SUM(BQ47:BQ49)","v":100},{"$f":"SUM(BR47:BR49)","v":30}]
["ЕН.01","Математика",null,null,3,null,null,null,null,{"$f":"AH47+AP47+AX47+BF47","v":100},null,{"$f":"AI47+AQ47+AY47+BG47","v":36},null,null,64,32,32,null,null,null,null,null,null,null,null,null,null,null,null,null,null,null,null,{"$f":"AI47+AK47","v":100},36,null,64,32,32,null,null,null,null,null,null,null,null,null,null,null,null,null,null,null,null,null,null,null,null,null,null,null,null,null,null,null,100,null,64]
["ЕН.02","Информатика",null,null,3,null,null,null,null,{"$f":"AH48+AP48+AX48+BF48","v":50},null,{"$f":"O48*50%","v":16},null,null,{"$f":"AK48+AS48+BA48+BI48","v":32},{"$f":"AL48","v":16},{"$f":"AM48","v":16},null,null,null,null,null,null,null,null,null,null,null,null,null,null,null,null,{"$f":"AI48+AK48","v":50},18,null,32,16,16,null,null,null,null,null,null,null,null,null,null,null,null,null,null,null,null,null,null,null,null,null,null,null,null,null,null,null,50,null,32]
["ЕНВ.03","Экономика ",null,null,1,null,null,null,null,{"$f":"L49+O49","v":51},null,17,null,null,{"$f":"P49+Q49","v":34},{"$f":"W49+AD49","v":17},{"$f":"X49+AE49","v":17},null,null,{"$f":"U49+V49","v":47.6},{"$f":"V49*40%","v":13.600000000000001},{"$f":"SUM(W49:X49)","v":34},17,17,null,null,null,null,null,null,null,null,null,null,null,null,null,null,null,null,null,null,null,null,null,null,null,null,null,null,null,null,null,null,null,null,null,null,null,null,null,null,null,null,null,null,null,51,4,30]
["П","Профессиональный цикл",15,2,11,null,null,5,null,{"$f":"J52+J71","v":2411},null,828,null,null,{"$f":"O52+O71","v":1659},726,959,null,20,null,null,null,null,null,null,null,null,null,null,null,null,null,null,441,142,null,299,108,191,null,null,874,288,null,586,273,313,null,null,730,238,null,492,214,258,null,20,488,160,null,328,131,197,null,null,null,{"$f":"BO52+BO71","v":1608},{"$f":"BP52+BP71","v":796},{"$f":"BQ52+BQ71","v":1072},{"$f":"BR52+BR71","v":577}]
[]
["ОП","Общепрофессиональные дисциплины",9,2,5,null,null,2,null,{"$f":"L52+O52","v":1884},{"$f":"SUM(K53:K70)","v":0},591,0,0,1293,648,644,{"$f":"SUM(R53:R67)","v":0},0,0,0,0,0,0,0,0,0,0,0,0,0,0,0,287,95,0,192,96,96,0,0,{"$f":"SUM(AP53:AP67)","v":475},141,0,334,171,163,0,0,410,110,0,300,150,150,0,0,375,124,0,251,123,127,null,null,null,{"$f":"SUM(BO53:BO70)","v":1144},{"$f":"SUM(BP53:BP70)","v":733},{"$f":"SUM(BQ53:BQ70)","v":762},{"$f":"SUM(BR53:BR70)","v":521}]
["ОП.01","Теория государства и права",3,null,null,null,null,null,null,{"$f":"L53+O53","v":100},null,{"$f":"AI53+AQ53+AY53+BG53","v":36},null,null,{"$f":"AK53+AS53+BA53+BI53","v":64},{"$f":"AL53+AT53+BB53+BJ53","v":32},{"$f":"AM53+AU53+BC53+BK53","v":32},null,null,null,null,null,null,null,null,null,null,null,null,null,null,null,null,{"$f":"AI53+AK53","v":100},36,null,{"$f":"SUM(AL53:AM53)","v":64},32,32,null,null,null,null,null,{"$f":"AT53+AU53","v":0},null,null,null,null,null,null,null,null,null,null,null,null,null,null,null,null,null,null,null,null,null,88,12,32,32]
["ОП.02","Конституционное право",3,null,null,null,null,null,null,100,null,36,null,null,64,32,32,null,null,null,null,null,null,null,null,null,null,null,null,null,null,null,null,{"$f":"AI54+AK54","v":100},36,null,{"$f":"SUM(AL54:AM54)","v":64},32,32,null,null,null,null,null,{"$f":"AT54+AU54","v":0},null,null,null,null,null,null,null,null,null,null,null,null,null,null,null,null,null,null,null,null,null,77,23,64]
["ОП.03","Административное право",3,null,null,null,null,null,null,87,null,23,null,null,64,32,32,null,null,null,null,null,null,null,null,null,null,null,null,null,null,null,null,87,23,null,64,32,32,null,null,null,null,null,0,null,null,null,null,null,null,null,null,null,null,null,null,null,null,null,null,null,null,null,null,null,67,20,64]
["ОП.04","Основы экологического права",null,null,5,null,null,null,null,80,null,20,null,null,60,30,30,null,null,null,null,null,null,null,null,null,null,null,null,null,null,null,null,null,null,null,null,null,null,null,null,null,null,null,0,null,null,null,null,{"$f":"AY56+BA56","v":80},20,null,60,30,30,null,null,null,null,null,null,null,null,null,null,null,48,32,30,30]
["ОП.05","Трудовое право",null,null,5,null,null,4,null,206,null,70,null,null,136,68,68,null,null,null,null,null,null,null,null,null,null,null,null,null,null,null,null,0,null,null,0,null,null,null,null,{"$f":"AQ57+AS57","v":104},28,null,76,38,38,null,null,{"$f":"AY57+BA57","v":80},20,null,60,30,30,null,null,null,null,null,null,null,null,null,null,null,140,66,136]
["ОП.06","Гражданское право",5,null,null,null,null,4,null,206,null,70,null,null,136,68,68,null,null,null,null,null,null,null,null,null,null,null,null,null,null,null,null,0,null,null,0,null,null,null,null,{"$f":"AQ58+AS58","v":104},28,null,76,38,38,null,null,{"$f":"AY58+BA58","v":80},20,null,60,30,30,null,null,null,null,null,null,null,null,null,null,null,143,63,100,36]
["ОП.07","Семейное право",null,null,6,null,null,null,null,66,null,22,null,null,44,22,22,null,null,null,null,null,null,null,null,null,null,null,null,null,null,null,null,0,null,null,0,null,null,null,null,null,null,null,0,null,null,null,null,null,null,null,null,null,null,null,null,{"$f":"BG59+BI59","v":66},{"$f":"BI59*50%","v":22},null,44,22,22,null,null,null,66,null,38,6]
["ОП.08","Гражданский процесс",6,null,5,null,null,null,null,145,null,41,null,null,104,52,52,null,null,null,null,null,null,null,null,null,null,null,null,null,null,null,null,0,null,null,0,null,null,null,null,null,null,null,0,null,null,null,null,80,20,null,60,30,30,null,null,{"$f":"BG60+BI60","v":65},21,null,44,22,22,null,null,null,88,50,52,52]
["ОП.09","Страховое дело",null,null,null,null,null,6,null,79,null,34,null,null,45,22,22,null,null,null,null,null,null,null,null,null,null,null,null,null,null,null,null,0,null,null,0,null,null,null,null,null,null,null,0,null,null,null,null,null,null,null,null,null,null,null,null,{"$f":"BG61+BI61","v":79},34,null,45,22,22,null,null,null,63,16,45]
["ОП.10","Статистика",4,null,null,null,null,null,null,104,null,36,null,null,68,38,30,null,null,null,null,null,null,null,null,null,null,null,null,null,null,null,null,0,null,null,0,null,null,null,null,{"$f":"AQ62+AS62","v":96},28,null,{"$f":"AT62+AU62","v":68},38,30,null,null,null,null,null,null,null,null,null,null,null,null,null,null,null,null,null,null,null,71,33,21,47]
["ОП.11","Экономика организации",null,null,5,null,null,null,null,90,null,30,null,null,60,30,30,null,null,null,null,null,null,null,null,null,null,null,null,null,null,null,null,null,null,null,null,null,null,null,null,null,null,null,0,null,null,null,null,90,30,null,60,30,30,null,null,null,null,null,null,null,null,null,null,null,40,50,40,20]
["ОП.12","Менеджмент",4,null,null,null,null,null,null,114,null,38,null,null,76,38,38,null,null,null,null,null,null,null,null,null,null,null,null,null,null,null,null,0,null,null,0,null,null,null,null,{"$f":"AQ64+AS64","v":114},{"$f":"AS64*50%","v":38},null,76,38,38,null,null,null,null,null,null,null,null,null,null,null,null,null,null,null,null,null,null,null,61,53,12,54]
["ОП.13","Документационное обеспечение управления",null,null,null,null,null,6,null,65,null,15,null,null,50,22,28,null,null,null,null,null,null,null,null,null,null,null,null,null,null,null,null,0,null,null,0,null,null,null,null,null,null,null,null,null,null,null,null,null,null,null,null,null,null,null,null,{"$f":"BG65+BI65","v":65},15,null,50,22,28,null,null,null,45,20,30,20]
["ОП.14","Информационные технологии в профессиональной деятельности",null,null,4,null,null,null,null,57,null,19,null,null,38,19,19,null,null,null,null,null,null,null,null,null,null,null,null,null,null,null,null,0,null,null,0,null,null,null,null,{"$f":"AQ66+AS66","v":57},{"$f":"AS66*50%","v":19},null,38,19,19,null,null,null,null,null,null,null,null,null,null,null,null,null,null,null,null,null,null,null,57,null,38]
["ОП.16","Безопасность жизнедеятельности",null,null,6,null,null,null,null,100,null,32,null,null,68,35,33,null,null,null,null,null,null,null,null,null,null,null,null,null,null,null,null,0,null,null,0,null,null,null,null,null,null,null,0,null,null,null,null,null,null,null,null,null,null,null,null,100,32,null,68,35,33,null,null,null,90,10,60,8]
["ОПВ.01","Уголовное право",5,null,4,null,null,null,null,{"$f":"L68+O68","v":145},null,37,null,null,108,54,54,null,null,null,null,null,null,null,null,null,null,null,null,null,null,null,null,45,13,null,32,16,16,null,null,100,24,null,76,38,38,null,null,null,null,null,null,null,null,null,null,null,null,null,null,null,null,null,null,null,null,145,null,108]
["ОПВ.02","Уголовный процесс",5,null,null,null,null,null,null,95,null,19,null,null,76,38,38,null,null,null,null,null,null,null,null,null,null,null,null,null,null,null,null,null,null,null,null,null,null,null,null,100,24,null,76,38,38,null,null,null,null,null,null,null,null,null,null,null,null,null,null,null,null,null,null,null,null,95,null,76]
["ОПВ.03","Право ",null,null,3,null,null,null,null,45,null,13,null,null,{"$f":"P70+Q70","v":32},16,16,null,null,null,null,null,null,null,null,null,null,null,null,null,null,null,null,45,13,null,32,16,16,null,null,null,null,null,0,null,null,null,null,null,null,null,null,null,null,null,null,null,null,null,null,null,null,null,null,null,null,45,null,32]
["П+57:71М","Профессиональные модули",6,null,6,null,null,3,null,{"$f":"J73+J81","v":527},0,212,0,0,366,221,221,0,20,null,null,null,null,null,null,null,null,null,null,null,null,null,null,null,null,null,null,null,null,0,0,98,30,0,76,38,38,0,0,225,60,0,180,90,90,0,20,null,null,null,null,null,null,null,null,null,{"$f":"BO73+BO81","v":464},{"$f":"BP73+BP81","v":63},{"$f":"BQ73+BQ81","v":310},{"$f":"BR73+BR81","v":56}]
[]
["ПМ.01","Обеспечение реализации прав граждан в сфере пенсионного обеспечения и социальной защиты",3,null,3,null,null,2,null,{"$f":"SUM(J75:J76)","v":337},null,148,null,null,{"$f":"SUM(O75:O76)","v":240},158,158,null,20,null,null,null,null,null,null,null,null,null,null,null,null,null,null,null,null,null,null,null,null,null,null,{"$f":"SUM(AP75:AP76)","v":98},30,0,76,38,38,null,null,{"$f":"SUM(AX75:AX76)","v":150},45,0,120,60,60,null,{"$f":"SUM(BE75:BE76)","v":20},null,null,null,null,null,null,null,null,null,{"$f":"SUM(BO75:BO76)","v":337},{"$f":"SUM(BP75:BP76)","v":0},{"$f":"SUM(BQ75:BQ76)","v":202},{"$f":"SUM(BR75:BR76)","v":38}]
[]
["МДК.01.01","Право социального обеспечения",6,null,4.5,null,null,null,null,{"$f":"SUM(L75:O75)","v":262},null,82,null,null,180,90,90,null,20,null,null,null,null,null,null,null,null,null,null,null,null,null,null,null,null,null,null,null,null,null,null,98,30,null,76,38,38,null,null,75,30,null,60,30,30,null,20,64,20,null,44,22,22,null,null,null,262,null,142,38,null,{"$f":"BF75+AX75+AP75","v":237}]
["МДК.01.02","Психология социально-правовой деятельности",null,null,5,null,null,null,null,{"$f":"SUM(L76:O76)","v":75},null,15,null,null,60,30,30,null,null,null,null,null,null,null,null,null,null,null,null,null,null,null,null,null,null,null,null,null,null,null,null,null,null,null,null,null,null,null,null,75,15,null,60,30,30,null,null,null,null,null,null,null,null,null,null,null,75,null,60]
["УП.01.01","Учебная практика",null,null,45,null,null,"РП",null,"False",null,"час",null,null,108,"нед",3,null,null,"час",null,null,"нед",null,null,null,"час",null,null,"нед",null,null,null,"час",null,null,null,"нед",null,null,null,"час",null,null,108,"нед",3,null,null,"час",null,null,null,"нед",null,null,null,"час",null,null,null,"нед"]
["ПП.01.01","Производственная практика (по профилю специальности)",null,null,4,null,null,"РП",null,"False",null,"час",null,null,72,"нед",2,null,null,"час",null,null,"нед",null,null,null,"час",null,null,"нед",null,null,null,"час",null,null,null,"нед",null,null,null,"час",null,null,36,"нед",1,null,null,"час",null,null,null,"нед",null,null,null,"час",null,null,36,"нед",1]
["ПМ.1.ЭК","Экзамен квалификационный",6]
[]
["П+73:81М.02","Организационное обеспечение деятельности учреждений социальной защиты населения и органов Пенсионного фонда Российской Федерации",2,null,1,null,null,1,null,{"$f":"SUM(J83)","v":190},{"$f":"SUM(K83)","v":0},64,0,0,126,63,63,0,0,null,null,null,null,null,null,null,null,null,null,null,null,null,null,null,null,null,null,null,null,0,0,0,0,0,0,0,0,0,0,75,15,0,60,30,30,0,0,null,null,null,null,null,null,0,0,0,127,63,108,18]
[]
["МДК.02.01","Организация работы органов и учреждений социальной защиты населения, органов Пенсионного фонда Российской Федерации",5.6,null,null,null,null,null,null,{"$f":"L83+O83","v":190},null,64,null,null,126,63,63,null,null,null,null,null,null,null,null,null,null,null,null,null,null,null,null,null,null,null,null,null,null,null,null,null,null,null,null,null,null,null,null,75,15,null,60,30,30,null,null,100,34,null,66,33,33,null,null,null,127,63,108,18]
["УП.02.01","Учебная практика",null,null,null,null,null,"РП",null,"False",null,"час",null,null,null,"нед",null,null,null,"час",null,null,"нед",null,null,null,"час",null,null,"нед",null,null,null,"час",null,null,null,"нед",null,null,null,"час",null,null,null,"нед",null,null,null,"час",null,null,null,"нед",null,null,null,"час",null,null,null,"нед"]
["ПП.02.01","Производственная практика (по профилю специальности)",null,null,6,null,null,"РП",null,"False",null,"час",null,null,72,"нед",2,null,null,"час",null,null,"нед",null,null,null,"час",null,null,"нед",null,null,null,"час",null,null,null,"нед",null,null,null,"час",null,null,null,"нед",null,null,null,"час",null,null,null,"нед",null,null,null,"час",null,null,"72","нед","2"]
["ПМ.2.ЭК","Экзамен квалификационный",6]
[]
[]
[]
[]
[]
[]
[]
[null,"Учебная практика",null,null,5,null,null,"РП",null,"False",null,"час",null,null,"36","нед","1",null,null,"час",null,null,"нед",null,null,null,"час",null,null,"нед",null,null,null,"час",null,null,null,"нед",null,null,null,"час",null,null,null,"нед",null,null,null,"час",null,null,"36","нед","1",null,null,"час",null,null,null,"нед"]
[null,"Производственная практика (по профилю специальности)",null,null,null,null,null,"РП",null,"False",null,"час",null,null,null,"нед",null,null,null,"час",null,null,"нед",null,null,null,"час",null,null,"нед",null,null,null,"час",null,null,null,"нед",null,null,null,"час",null,null,null,"нед",null,null,null,"час",null,null,null,"нед",null,null,null,"час",null,null,null,"нед"]
[null,"Экзамен квалификационный","5"]
[]
[]
[null,"Учебная и производственная (по профилю специальности) практики ",null,null,null,null,null,null,null,"час",null,null,null,null,"288","нед","8 ",null,null,"час",null,null,"нед",null,null,null,"час",null,null,"нед",null,null,null,"час",null,null,null,"нед",null,null,null,"час",null,null,"144","нед","4 ",null,null,"час",null,null,"36","нед","1 ",null,null,"час",null,null,"108","нед","3 "]
[]
[null,"Учебная практика",null,null,null,null,null,null,null,"час",null,null,null,null,"144","нед","4 ",null,null,"час",null,null,"нед",null,null,null,"час",null,null,"нед",null,null,null,"час",null,null,null,"нед",null,null,null,"час",null,null,"108","нед","3 ",null,null,"час",null,null,"36","нед","1 ",null,null,"час",null,null,null,"нед"]
[null,"    Концентрированная",null,null,null,null,null,null,null,"час",null,null,null,null,"144","нед","4 ",null,null,"час",null,null,"нед",null,null,null,"час",null,null,"нед",null,null,null,"час",null,null,null,"нед",null,null,null,"час",null,null,"108","нед","3 ",null,null,"час",null,null,"36","нед","1 ",null,null,"час",null,null,null,"нед"]
[null,"    Рассредоточенная",null,null,null,null,null,null,null,"час",null,null,null,null,null,"нед",null,null,null,"час",null,null,"нед",null,null,null,"час",null,null,"нед",null,null,null,"час",null,null,null,"нед",null,null,null,"час",null,null,null,"нед",null,null,null,"час",null,null,null,"нед",null,null,null,"час",null,null,null,"нед"]
[]
[null,"Производственная (по профилю специальности) практика",null,null,null,null,null,null,null,"час",null,null,null,null,"144","нед","4 ",null,null,"час",null,null,"нед",null,null,null,"час",null,null,"нед",null,null,null,"час",null,null,null,"нед",null,null,null,"час",null,null,"36","нед","1 ",null,null,"час",null,null,null,"нед",null,null,null,"час",null,null,"108","нед","3 "]
[null,"    Концентрированная",null,null,null,null,null,null,null,"час",null,null,null,null,"144","нед","4 ",null,null,"час",null,null,"нед",null,null,null,"час",null,null,"нед",null,null,null,"час",null,null,null,"нед",null,null,null,"час",null,null,"36","нед","1 ",null,null,"час",null,null,null,"нед",null,null,null,"час",null,null,"108","нед","3 "]
[null,"    Рассредоточенная",null,null,null,null,null,null,null,"час",null,null,null,null,null,"нед",null,null,null,"час",null,null,"нед",null,null,null,"час",null,null,"нед",null,null,null,"час",null,null,null,"нед",null,null,null,"час",null,null,null,"нед",null,null,null,"час",null,null,null,"нед",null,null,null,"час",null,null,null,"нед"]
[]
["ПДП","Преддипломная практика",null,null,6,null,null,null,null,null,null,null,null,null,null,"нед","4 ",null,null,null,null,null,"нед",null,null,null,null,null,null,"нед",null,null,null,null,null,null,null,"нед",null,null,null,null,null,null,null,"нед",null,null,null,null,null,null,null,"нед",null,null,null,null,null,null,null,"нед","4 "]
[]
[null,"Государственная итоговая аттестация",null,null,null,null,null,null,null,null,null,null,null,null,null,"нед","6 ",null,null,null,null,null,"нед",null,null,null,null,null,null,"нед",null,null,null,null,null,null,null,"нед",null,null,null,null,null,null,null,"нед",null,null,null,null,null,null,null,"нед",null,null,null,null,null,null,null,"нед","6 "]
[null,"Подготовка выпускной квалификационной работы",null,null,null,null,null,null,null,null,null,null,null,null,null,"нед","4 ",null,null,null,null,null,"нед",null,null,null,null,null,null,"нед",null,null,null,null,null,null,null,"нед",null,null,null,null,null,null,null,"нед",null,null,null,null,null,null,null,"нед",null,null,null,null,null,null,null,"нед","4"]
[null,"Защита выпускной квалификационной работы",null,null,null,null,null,null,null,null,null,null,null,null,null,"нед","2 ",null,null,null,null,null,"нед",null,null,null,null,null,null,"нед",null,null,null,null,null,null,null,"нед",null,null,null,null,null,null,null,"нед",null,null,null,null,null,null,null,"нед",null,null,null,null,null,null,null,"нед","2"]
[null,"Подготовка к государственным экзаменам",null,null,null,null,null,null,null,null,null,null,null,null,null,"нед",null,null,null,null,null,null,"нед",null,null,null,null,null,null,"нед",null,null,null,null,null,null,null,"нед",null,null,null,null,null,null,null,"нед",null,null,null,null,null,null,null,"нед",null,null,null,null,null,null,null,"нед"]
[null,"Проведение государственных экзаменов",null,null,null,null,null,null,null,null,null,null,null,null,null,"нед",null,null,null,null,null,null,"нед",null,null,null,null,null,null,"нед",null,null,null,null,null,null,null,"нед",null,null,null,null,null,null,null,"нед",null,null,null,null,null,null,null,"нед",null,null,null,null,null,null,null,"нед"]
[]
[null,"КОНСУЛЬТАЦИИ по О",null,null,null,null,null,null,null,"100",null,null,null,null,null,null,null,null,null,"50",null,null,null,null,null,null,"50"]
[null,"в т.ч. в период обучения по циклам"]
[]
[null,"КОНСУЛЬТАЦИИ по ПП",null,null,null,null,null,null,null,"280",null,null,null,null,null,null,null,null,null,null,null,null,null,null,null,null,null,null,null,null,null,null,null,"50",null,null,null,null,null,null,null,"50",null,null,null,null,null,null,null,"90",null,null,null,null,null,null,null,"90"]
[null,"          в т.ч. в период обучения по циклам"]
[]
[null,"ВСЕГО ПО ДИСЦИПЛИНАМ И МДК",22,7,29,null,null,14,null,5400,null,1800,null,null,3600,1886,1694,null,20,918,306,612,468,144,null,null,1188,396,792,575,217,null,null,864,288,null,576,207,369,null,null,1026,342,null,684,291,393,null,null,810,270,null,540,214,306,null,20,594,198,null,396,131,265,null,null,null,4374,1026,2916,684]
[]
[null,"ВСЕГО ПО ДИСЦИПЛИНАМ И МДК (С КОНСУЛЬТАЦИЯМИ В ПЕРИОД ОБУЧЕНИЯ ПО ЦИКЛАМ)",22,7,29,null,null,14,null,5400,null,1800,null,null,3600,1886,1694,null,20,918,306,612,468,144,null,null,1188,396,792,575,217,null,null,864,288,null,576,207,369,null,null,1026,342,null,684,291,393,null,null,810,270,null,540,214,306,null,20,594,198,null,396,131,265,null,null,null,4374,1026,2916,684]
[]
[null,"Экзамены (без учета физ. культуры)",null,null,null,null,null,null,null,null,null,null,null,null,null,null,null,null,null,null,null,null,null,null,null,null,6,null,null,null,null,null,null,"1",null,null,null,null,null,null,null,"4",null,null,null,null,null,null,null,"4",null,null,null,null,null,null,null,"4"]
[null,"Зачеты (без учета физ. культуры)",null,null,null,null,null,null,null,null,null,null,null,null,null,null,null,null,null,null,null,null,null,null,null,null,null,null,null,null,null,null,null,"1",null,null,null,null,null,null,null,"1",null,null,null,null,null,null,null,"1"]
[null,"Диффер. зачеты (без учета физ. культуры)",null,null,null,null,null,null,null,null,null,null,null,null,null,null,null,null,null,"5",null,null,null,null,null,null,5,null,null,null,null,null,null,"5",null,null,null,null,null,null,null,"3",null,null,null,null,null,null,null,"3",null,null,null,null,null,null,null,"5"]
[null,"Курсовые проекты (без учета физ. культуры)"]
[null,"Курсовые работы (без учета физ. культуры)"]

{"sheet":"Компетенции","index":3,"n_rows":1702,"n_cols":5,"rows_kept":1702,"cut":false,"hidden":false,"merged":[[0,0,0,1],[1,0,1,1],[82,0,82,1],[163,0,163,1],[244,0,244,1],[325,0,325,1],[406,0,406,1],[487,0,487,1],[568,0,568,1],[649,0,649,1],[730,0,730,1],[811,0,811,1],[1378,0,1378,1],[1459,0,1459,1],[1540,0,1540,1],[1621,0,1621,1],[892,0,892,1],[973,0,973,1],[1054,0,1054,1],[1135,0,1135,1],[1216,0,1216,1],[1297,0,1297,1]]}
["Индекс",null,null,null,"Содержание"]
["ОК 1",null,null,1,"Понимать сущность и социальную значимость своей будущей профессии, проявлять к ней устойчивый интерес."]
[null,"  ОГСЭ.01",null,2,"Основы философии"]
[null,"  ОГСЭ.02",null,3,"История"]
[null,"  ОГСЭ.03",null,4,"Иностранный язык"]
[null,"  ОГСЭ.04",null,5,"Русский язык и культура речи"]
[null,"  ЕН.01",null,6,"Математика"]
[null,"  ЕН.02",null,7,"Информатика"]
[null,"  ОП.16",null,8,"Безопасность жизнедеятельности"]
[null,"  ОП.05",null,9,"Трудовое право"]
[null,"  ОП.08",null,10,"Гражданский процесс"]
[null,"  ОП.09",null,11,"Страховое дело"]
[null,"  ОП.12",null,12,"Менеджмент"]
[null,"  ОП.13",null,13,"Документационное обеспечение управления"]
[null,"  ОП.14",null,14,"Информационные технологии в профессиональной деятельности"]
[null,"  МДК.01.01",null,15,"Право социального обеспечения"]
[null,"  МДК.01.02",null,16,"Психология социально-правовой деятельности"]
[null,"  УП.01.01",null,17,"Учебная практика"]
[null,"  ПП.01.01",null,18,"Производственная практика (по профилю специальности)"]
[null,"  МДК.02.01",null,19,"Организация работы органов и учреждений социальной защиты населения, органов Пенсионного фонда Российской Федерации"]
[null,"  УП.02.01",null,20,"Учебная практика"]
[null,"  ПП.02.01",null,21,"Производственная практика (по профилю специальности)"]
[null,"  МДК.03.01",null,22,"Организация предпринимательской деятельности"]
[null,"  УП.03.01",null,23,"Учебная практика"]
[null,"  ПП.03.01",null,24,"Производственная практика (по профилю специальности)"]
[null,null,null,25]
[null,null,null,26]
[null,null,null,27]
[null,null,null,28]
[null,null,null,29]
[null,null,null,30]
[null,null,null,31]
[null,null,null,32]
[null,null,null,33]
[null,null,null,34]
[null,null,null,35]
[null,null,null,36]
[null,null,null,37]
[null,null,null,38]
[null,null,null,39]
[null,null,null,40]
[null,null,null,41]
[null,null,null,42]
[null,null,null,43]
[null,null,null,44]
[null,null,null,45]
[null,null,null,46]
[null,null,null,47]
[null,null,null,48]
[null,null,null,49]
[null,null,null,50]
[null,null,null,51]
[null,null,null,52]
[null,null,null,53]
[null,null,null,54]
[null,null,null,55]
[null,null,null,56]
[null,null,null,57]
[null,null,null,58]
[null,null,null,59]
[null,null,null,60]
[null,null,null,61]
[null,null,null,62]
[null,null,null,63]
[null,null,null,64]
[null,null,null,65]
[null,null,null,66]
[null,null,null,67]
[null,null,null,68]
[null,null,null,69]
[null,null,null,70]
[null,null,null,71]
[null,null,null,72]
[null,null,null,73]
[null,null,null,74]
[null,null,null,75]
[null,null,null,76]
[null,null,null,77]
[null,null,null,78]
[null,null,null,79]
[null,null,null,80]
[null,null,null,81]
["ОК 2",null,null,1,"Организовывать собственную деятельность, выбирать типовые методы и способы выполнения профессиональных задач, оценивать их эффективность и качество."]
[null,"  ОГСЭ.05",null,2,"Физическая культура"]
[null,"  ОГСЭ.01",null,3,"Основы философии"]
[null,"  ОГСЭ.02",null,4,"История"]
[null,"  ОГСЭ.03",null,5,"Иностранный язык"]
[null,"  ОГСЭ.04",null,6,"Русский язык и культура речи"]
[null,"  ЕН.01",null,7,"Математика"]
[null,"  ЕН.02",null,8,"Информатика"]
[null,"  ОП.16",null,9,"Безопасность жизнедеятельности"]
[null,"  ОП.02",null,10,"Конституционное право"]
[null,"  ОП.03",null,11,"Административное право"]
[null,"  ОП.04",null,12,"Основы экологического права"]
[null,"  ОП.05",null,13,"Трудовое право"]
[null,"  ОП.06",null,14,"Гражданское право"]
[null,"  ОП.07",null,15,"Семейное право"]
[null,"  ОП.08",null,16,"Гражданский процесс"]
[null,"  ОП.09",null,17,"Страховое дело"]
[null,"  ОП.10",null,18,"Статистика"]
[null,"  ОП.11",null,19,"Экономика организации"]
[null,"  ОП.12",null,20,"Менеджмент"]
[null,"  ОП.13",null,21,"Документационное обеспечение управления"]
[null,"  ОП.14",null,22,"Информационные технологии в профессиональной деятельности"]
[null,"  УП.01.01",null,23,"Учебная практика"]
[null,"  ПП.01.01",null,24,"Производственная практика (по профилю специальности)"]
[null,"  МДК.02.01",null,25,"Организация работы органов и учреждений социальной защиты населения, органов Пенсионного фонда Российской Федерации"]
[null,"  УП.02.01",null,26,"Учебная практика"]
[null,"  ПП.02.01",null,27,"Производственная практика (по профилю специальности)"]
[null,"  МДК.03.01",null,28,"Организация предпринимательской деятельности"]
[null,"  УП.03.01",null,29,"Учебная практика"]
[null,"  ПП.03.01",null,30,"Производственная практика (по профилю специальности)"]
[null,null,null,31]
[null,null,null,32]
[null,null,null,33]
[null,null,null,34]
[null,null,null,35]
[null,null,null,36]
[null,null,null,37]
[null,null,null,38]
[null,null,null,39]
[null,null,null,40]
[null,null,null,41]
[null,null,null,42]
[null,null,null,43]
[null,null,null,44]
[null,null,null,45]
[null,null,null,46]
[null,null,null,47]
[null,null,null,48]
[null,null,null,49]
[null,null,null,50]
[null,null,null,51]
[null,null,null,52]
[null,null,null,53]
[null,null,null,54]
[null,null,null,55]
[null,null,null,56]
[null,null,null,57]
[null,null,null,58]
[null,null,null,59]
[null,null,null,60]
[null,null,null,61]
[null,null,null,62]
[null,null,null,63]
[null,null,null,64]
[null,null,null,65]
[null,null,null,66]
[null,null,null,67]
[null,null,null,68]
[null,null,null,69]
[null,null,null,70]
[null,null,null,71]
[null,null,null,72]
[null,null,null,73]
[null,null,null,74]
[null,null,null,75]
[null,null,null,76]
[null,null,null,77]
[null,null,null,78]
[null,null,null,79]
[null,null,null,80]
[null,null,null,81]
["ОК 3",null,null,1,"Принимать решения в стандартных и нестандартных ситуациях и нести за них ответственность."]
[null,"  ОГСЭ.05",null,2,"Физическая культура"]
[null,"  ОГСЭ.01",null,3,"Основы философии"]
[null,"  ОГСЭ.02",null,4,"История"]
[null,"  ОГСЭ.03",null,5,"Иностранный язык"]
[null,"  ОГСЭ.04",null,6,"Русский язык и культура речи"]
[null,"  ЕН.01",null,7,"Математика"]
[null,"  ЕН.02",null,8,"Информатика"]
[null,"  ОП.16",null,9,"Безопасность жизнедеятельности"]
[null,"  ОП.05",null,10,"Трудовое право"]
[null,"  ОП.09",null,11,"Страховое дело"]
[null,"  ОП.10",null,12,"Статистика"]
[null,"  ОП.11",null,13,"Экономика организации"]
[null,"  ОП.12",null,14,"Менеджмент"]
[null,"  ОП.13",null,15,"Документационное обеспечение управления"]
[null,"  ОП.14",null,16,"Информационные технологии в профессиональной деятельности"]
[null,"  МДК.01.01",null,17,"Право социального обеспечения"]
[null,"  МДК.01.02",null,18,"Психология социально-правовой деятельности"]
[null,"  УП.01.01",null,19,"Учебная практика"]
[null,"  ПП.01.01",null,20,"Производственная практика (по профилю специальности)"]
[null,"  МДК.02.01",null,21,"Организация работы органов и учреждений социальной защиты населения, органов Пенсионного фонда Российской Федерации"]
[null,"  УП.02.01",null,22,"Учебная практика"]
[null,"  ПП.02.01",null,23,"Производственная практика (по профилю специальности)"]
[null,"  МДК.03.01",null,24,"Организация предпринимательской деятельности"]
[null,"  УП.03.01",null,25,"Учебная практика"]
[null,"  ПП.03.01",null,26,"Производственная практика (по профилю специальности)"]
[null,null,null,27]
[null,null,null,28]
[null,null,null,29]
[null,null,null,30]
[null,null,null,31]
[null,null,null,32]
[null,null,null,33]
[null,null,null,34]
[null,null,null,35]
[null,null,null,36]
[null,null,null,37]
[null,null,null,38]
[null,null,null,39]
[null,null,null,40]
[null,null,null,41]
[null,null,null,42]
[null,null,null,43]
[null,null,null,44]
[null,null,null,45]
[null,null,null,46]
[null,null,null,47]
[null,null,null,48]
[null,null,null,49]
[null,null,null,50]
[null,null,null,51]
[null,null,null,52]
[null,null,null,53]
[null,null,null,54]
[null,null,null,55]
[null,null,null,56]
[null,null,null,57]
[null,null,null,58]
[null,null,null,59]
[null,null,null,60]
[null,null,null,61]
[null,null,null,62]
[null,null,null,63]
[null,null,null,64]
[null,null,null,65]
[null,null,null,66]
[null,null,null,67]
[null,null,null,68]
[null,null,null,69]
[null,null,null,70]
[null,null,null,71]
[null,null,null,72]
[null,null,null,73]
[null,null,null,74]
[null,null,null,75]
[null,null,null,76]
[null,null,null,77]
[null,null,null,78]
[null,null,null,79]
[null,null,null,80]
[null,null,null,81]
["ОК 4",null,null,1,"Осуществлять поиск и использование информации, необходимой для эффективного выполнения профессиональных задач, профессионального и личностного развития."]
[null,"  ОГСЭ.01",null,2,"Основы философии"]
[null,"  ОГСЭ.02",null,3,"История"]
[null,"  ОГСЭ.03",null,4,"Иностранный язык"]
[null,"  ОГСЭ.04",null,5,"Русский язык и культура речи"]
[null,"  ЕН.01",null,6,"Математика"]
[null,"  ЕН.02",null,7,"Информатика"]
[null,"  ОП.16",null,8,"Безопасность жизнедеятельности"]
[null,"  ОП.01",null,9,"Теория государства и права"]
[null,"  ОП.02",null,10,"Конституционное право"]
[null,"  ОП.03",null,11,"Административное право"]
[null,"  ОП.04",null,12,"Основы экологического права"]
[null,"  ОП.05",null,13,"Трудовое право"]
[null,"  ОП.06",null,14,"Гражданское право"]
[null,"  ОП.07",null,15,"Семейное право"]
[null,"  ОП.08",null,16,"Гражданский процесс"]
[null,"  ОП.09",null,17,"Страховое дело"]
[null,"  ОП.10",null,18,"Статистика"]
[null,"  ОП.11",null,19,"Экономика организации"]
[null,"  ОП.13",null,20,"Документационное обеспечение управления"]
[null,"  ОП.14",null,21,"Информационные технологии в профессиональной деятельности"]
[null,"  ОП.15",null,22,"Муниципальное право"]
[null,"  МДК.01.01",null,23,"Право социального обеспечения"]
[null,"  МДК.01.02",null,24,"Психология социально-правовой деятельности"]
[null,"  УП.01.01",null,25,"Учебная практика"]
[null,"  ПП.01.01",null,26,"Производственная практика (по профилю специальности)"]
[null,"  МДК.02.01",null,27,"Организация работы органов и учреждений социальной защиты населения, органов Пенсионного фонда Российской Федерации"]
[null,"  УП.02.01",null,28,"Учебная практика"]
[null,"  ПП.02.01",null,29,"Производственная практика (по профилю специальности)"]
[null,"  МДК.03.01",null,30,"Организация предпринимательской деятельности"]
[null,"  УП.03.01",null,31,"Учебная практика"]
[null,"  ПП.03.01",null,32,"Производственная практика (по профилю специальности)"]
[null,null,null,33]
[null,null,null,34]
[null,null,null,35]
[null,null,null,36]
[null,null,null,37]
[null,null,null,38]
[null,null,null,39]
[null,null,null,40]
[null,null,null,41]
[null,null,null,42]
[null,null,null,43]
[null,null,null,44]
[null,null,null,45]
[null,null,null,46]
[null,null,null,47]
[null,null,null,48]
[null,null,null,49]
[null,null,null,50]
[null,null,null,51]
[null,null,null,52]
[null,null,null,53]
[null,null,null,54]
[null,null,null,55]
[null,null,null,56]
[null,null,null,57]
[null,null,null,58]
[null,null,null,59]
[null,null,null,60]
[null,null,null,61]
[null,null,null,62]
[null,null,null,63]
[null,null,null,64]
[null,null,null,65]
[null,null,null,66]
[null,null,null,67]
[null,null,null,68]
[null,null,null,69]
[null,null,null,70]
[null,null,null,71]
[null,null,null,72]
[null,null,null,73]
[null,null,null,74]
[null,null,null,75]
[null,null,null,76]
[null,null,null,77]
[null,null,null,78]
[null,null,null,79]
[null,null,null,80]
[null,null,null,81]
["ОК 5",null,null,1,"Использовать информационно-коммуникационные технологии в профессиональной деятельности."]
[null,"  ОГСЭ.01",null,2,"Основы философии"]
[null,"  ОГСЭ.02",null,3,"История"]
[null,"  ОГСЭ.03",null,4,"Иностранный язык"]
[null,"  ОГСЭ.04",null,5,"Русский язык и культура речи"]
[null,"  ЕН.01",null,6,"Математика"]
[null,"  ЕН.02",null,7,"Информатика"]
[null,"  ОП.16",null,8,"Безопасность жизнедеятельности"]
[null,"  ОП.02",null,9,"Конституционное право"]
[null,"  ОП.03",null,10,"Административное право"]
[null,"  ОП.04",null,11,"Основы экологического права"]
[null,"  ОП.05",null,12,"Трудовое право"]
[null,"  ОП.07",null,13,"Семейное право"]
[null,"  ОП.08",null,14,"Гражданский процесс"]
[null,"  ОП.09",null,15,"Страховое дело"]
[null,"  ОП.10",null,16,"Статистика"]
[null,"  ОП.13",null,17,"Документационное обеспечение управления"]
[null,"  ОП.14",null,18,"Информационные технологии в профессиональной деятельности"]
[null,"  МДК.01.01",null,19,"Право социального обеспечения"]
[null,"  МДК.01.02",null,20,"Психология социально-правовой деятельности"]
[null,"  УП.01.01",null,21,"Учебная практика"]
[null,"  ПП.01.01",null,22,"Производственная практика (по профилю специальности)"]
[null,"  УП.02.01",null,23,"Учебная практика"]
[null,"  ПП.02.01",null,24,"Производственная практика (по профилю специальности)"]
[null,"  МДК.03.01",null,25,"Организация предпринимательской деятельности"]
[null,"  УП.03.01",null,26,"Учебная практика"]
[null,"  ПП.03.01",null,27,"Производственная практика (по профилю специальности)"]
[null,null,null,28]
[null,null,null,29]
[null,null,null,30]
[null,null,null,31]
[null,null,null,32]
[null,null,null,33]
[null,null,null,34]
[null,null,null,35]
[null,null,null,36]
[null,null,null,37]
[null,null,null,38]
[null,null,null,39]
[null,null,null,40]
[null,null,null,41]
[null,null,null,42]
[null,null,null,43]
[null,null,null,44]
[null,null,null,45]
[null,null,null,46]
[null,null,null,47]
[null,null,null,48]
[null,null,null,49]
[null,null,null,50]
[null,null,null,51]
[null,null,null,52]
[null,null,null,53]
[null,null,null,54]
[null,null,null,55]
[null,null,null,56]
[null,null,null,57]
[null,null,null,58]
[null,null,null,59]
[null,null,null,60]
[null,null,null,61]
[null,null,null,62]
[null,null,null,63]
[null,null,null,64]
[null,null,null,65]
[null,null,null,66]
[null,null,null,67]
[null,null,null,68]
[null,null,null,69]
[null,null,null,70]
[null,null,null,71]
[null,null,null,72]
[null,null,null,73]
[null,null,null,74]
[null,null,null,75]
[null,null,null,76]
[null,null,null,77]
[null,null,null,78]
[null,null,null,79]
[null,null,null,80]
[null,null,null,81]
["ОК 6",null,null,1,"Работать в коллективе и команде, эффективно общаться с коллегами, руководством, потребителями."]
[null,"  ОГСЭ.05",null,2,"Физическая культура"]
[null,"  ОГСЭ.01",null,3,"Основы философии"]
[null,"  ОГСЭ.02",null,4,"История"]
[null,"  ОГСЭ.03",null,5,"Иностранный язык"]
[null,"  ОГСЭ.04",null,6,"Русский язык и культура речи"]
[null,"  ЕН.01",null,7,"Математика"]
[null,"  ЕН.02",null,8,"Информатика"]
[null,"  ОП.16",null,9,"Безопасность жизнедеятельности"]
[null,"  ОП.02",null,10,"Конституционное право"]
[null,"  ОП.03",null,11,"Административное право"]
[null,"  ОП.04",null,12,"Основы экологического права"]
[null,"  ОП.05",null,13,"Трудовое право"]
[null,"  ОП.08",null,14,"Гражданский процесс"]
[null,"  ОП.12",null,15,"Менеджмент"]
[null,"  ОП.14",null,16,"Информационные технологии в профессиональной деятельности"]
[null,"  МДК.01.01",null,17,"Право социального обеспечения"]
[null,"  МДК.01.02",null,18,"Психология социально-правовой деятельности"]
[null,"  УП.01.01",null,19,"Учебная практика"]
[null,"  ПП.01.01",null,20,"Производственная практика (по профилю специальности)"]
[null,"  МДК.02.01",null,21,"Организация работы органов и учреждений социальной защиты населения, органов Пенсионного фонда Российской Федерации"]
[null,"  УП.02.01",null,22,"Учебная практика"]
[null,"  ПП.02.01",null,23,"Производственная практика (по профилю специальности)"]
[null,"  МДК.03.01",null,24,"Организация предпринимательской деятельности"]
[null,"  УП.03.01",null,25,"Учебная практика"]
[null,"  ПП.03.01",null,26,"Производственная практика (по профилю специальности)"]
[null,null,null,27]
[null,null,null,28]
[null,null,null,29]
[null,null,null,30]
[null,null,null,31]
[null,null,null,32]
[null,null,null,33]
[null,null,null,34]
[null,null,null,35]
[null,null,null,36]
[null,null,null,37]
[null,null,null,38]
[null,null,null,39]
[null,null,null,40]
[null,null,null,41]
[null,null,null,42]
[null,null,null,43]
[null,null,null,44]
[null,null,null,45]
[null,null,null,46]
[null,null,null,47]
[null,null,null,48]
[null,null,null,49]
[null,null,null,50]
[null,null,null,51]
[null,null,null,52]
[null,null,null,53]
[null,null,null,54]
[null,null,null,55]
[null,null,null,56]
[null,null,null,57]
[null,null,null,58]
[null,null,null,59]
[null,null,null,60]
[null,null,null,61]
[null,null,null,62]
[null,null,null,63]
[null,null,null,64]
[null,null,null,65]
[null,null,null,66]
[null,null,null,67]
[null,null,null,68]
[null,null,null,69]
[null,null,null,70]
[null,null,null,71]
[null,null,null,72]
[null,null,null,73]
[null,null,null,74]
[null,null,null,75]
[null,null,null,76]
[null,null,null,77]
[null,null,null,78]
[null,null,null,79]
[null,null,null,80]
[null,null,null,81]
["ОК 7",null,null,1,"Брать на себя ответственность за работу членов команды (подчиненных), результат выполнения заданий."]
[null,"  ОГСЭ.01",null,2,"Основы философии"]
[null,"  ОГСЭ.02",null,3,"История"]
[null,"  ОГСЭ.03",null,4,"Иностранный язык"]
[null,"  ОГСЭ.04",null,5,"Русский язык и культура речи"]
[null,"  ЕН.02",null,6,"Информатика"]
[null,"  ОП.16",null,7,"Безопасность жизнедеятельности"]
[null,"  ОП.07",null,8,"Семейное право"]
[null,"  ОП.08",null,9,"Гражданский процесс"]
[null,"  ОП.12",null,10,"Менеджмент"]
[null,"  МДК.01.01",null,11,"Право социального обеспечения"]
[null,"  МДК.01.02",null,12,"Психология социально-правовой деятельности"]
[null,"  УП.01.01",null,13,"Учебная практика"]
[null,"  ПП.01.01",null,14,"Производственная практика (по профилю специальности)"]
[null,"  МДК.02.01",null,15,"Организация работы органов и учреждений социальной защиты населения, органов Пенсионного фонда Российской Федерации"]
[null,"  УП.02.01",null,16,"Учебная практика"]
[null,"  ПП.02.01",null,17,"Производственная практика (по профилю специальности)"]
[null,"  МДК.03.01",null,18,"Организация предпринимательской деятельности"]
[null,"  УП.03.01",null,19,"Учебная практика"]
[null,"  ПП.03.01",null,20,"Производственная практика (по профилю специальности)"]
[null,null,null,21]
[null,null,null,22]
[null,null,null,23]
[null,null,null,24]
[null,null,null,25]
[null,null,null,26]
[null,null,null,27]
[null,null,null,28]
[null,null,null,29]
[null,null,null,30]
[null,null,null,31]
[null,null,null,32]
[null,null,null,33]
[null,null,null,34]
[null,null,null,35]
[null,null,null,36]
[null,null,null,37]
[null,null,null,38]
[null,null,null,39]
[null,null,null,40]
[null,null,null,41]
[null,null,null,42]
[null,null,null,43]
[null,null,null,44]
[null,null,null,45]
[null,null,null,46]
[null,null,null,47]
[null,null,null,48]
[null,null,null,49]
[null,null,null,50]
[null,null,null,51]
[null,null,null,52]
[null,null,null,53]
[null,null,null,54]
[null,null,null,55]
[null,null,null,56]
[null,null,null,57]
[null,null,null,58]
[null,null,null,59]
[null,null,null,60]
[null,null,null,61]
[null,null,null,62]
[null,null,null,63]
[null,null,null,64]
[null,null,null,65]
[null,null,null,66]
[null,null,null,67]
[null,null,null,68]
[null,null,null,69]
[null,null,null,70]
[null,null,null,71]
[null,null,null,72]
[null,null,null,73]
[null,null,null,74]
[null,null,null,75]
[null,null,null,76]
[null,null,null,77]
[null,null,null,78]
[null,null,null,79]
[null,null,null,80]
[null,null,null,81]
["ОК 8",null,null,1,"Самостоятельно определять задачи профессионального и личностного развития, заниматься самообразованием, осознанно планировать повышение квалификации."]
[null,"  ОГСЭ.01",null,2,"Основы философии"]
[null,"  ОГСЭ.02",null,3,"История"]
[null,"  ОГСЭ.03",null,4,"Иностранный язык"]
[null,"  ОГСЭ.04",null,5,"Русский язык и культура речи"]
[null,"  ЕН.02",null,6,"Информатика"]
[null,"  ОП.16",null,7,"Безопасность жизнедеятельности"]
[null,"  ОП.02",null,8,"Конституционное право"]
[null,"  ОП.03",null,9,"Административное право"]
[null,"  ОП.04",null,10,"Основы экологического права"]
[null,"  ОП.05",null,11,"Трудовое право"]
[null,"  ОП.07",null,12,"Семейное право"]
[null,"  ОП.08",null,13,"Гражданский процесс"]
[null,"  ОП.12",null,14,"Менеджмент"]
[null,"  ОП.13",null,15,"Документационное обеспечение управления"]
[null,"  УП.01.01",null,16,"Учебная практика"]
[null,"  ПП.01.01",null,17,"Производственная практика (по профилю специальности)"]
[null,"  МДК.02.01",null,18,"Организация работы органов и учреждений социальной защиты населения, органов Пенсионного фонда Российской Федерации"]
[null,"  УП.02.01",null,19,"Учебная практика"]
[null,"  ПП.02.01",null,20,"Производственная практика (по профилю специальности)"]
[null,"  МДК.03.01",null,21,"Организация предпринимательской деятельности"]
[null,"  УП.03.01",null,22,"Учебная практика"]
[null,"  ПП.03.01",null,23,"Производственная практика (по профилю специальности)"]
[null,null,null,24]
[null,null,null,25]
[null,null,null,26]
[null,null,null,27]
[null,null,null,28]
[null,null,null,29]
[null,null,null,30]
[null,null,null,31]
[null,null,null,32]
[null,null,null,33]
[null,null,null,34]
[null,null,null,35]
[null,null,null,36]
[null,null,null,37]
[null,null,null,38]
[null,null,null,39]
[null,null,null,40]
[null,null,null,41]
[null,null,null,42]
[null,null,null,43]
[null,null,null,44]
[null,null,null,45]
[null,null,null,46]
[null,null,null,47]
[null,null,null,48]
[null,null,null,49]
[null,null,null,50]
[null,null,null,51]
[null,null,null,52]
[null,null,null,53]
[null,null,null,54]
[null,null,null,55]
[null,null,null,56]
[null,null,null,57]
[null,null,null,58]
[null,null,null,59]
[null,null,null,60]
[null,null,null,61]
[null,null,null,62]
[null,null,null,63]
[null,null,null,64]
[null,null,null,65]
[null,null,null,66]
[null,null,null,67]
[null,null,null,68]
[null,null,null,69]
[null,null,null,70]
[null,null,null,71]
[null,null,null,72]
[null,null,null,73]
[null,null,null,74]
[null,null,null,75]
[null,null,null,76]
[null,null,null,77]
[null,null,null,78]
[null,null,null,79]
[null,null,null,80]
[null,null,null,81]
["ОК 9",null,null,1,"Ориентироваться в условиях постоянного изменения правовой базы."]
[null,"  ОГСЭ.01",null,2,"Основы философии"]
[null,"  ОГСЭ.02",null,3,"История"]
[null,"  ОГСЭ.03",null,4,"Иностранный язык"]
[null,"  ОГСЭ.04",null,5,"Русский язык и культура речи"]
[null,"  ЕН.01",null,6,"Математика"]
[null,"  ЕН.02",null,7,"Информатика"]
[null,"  ОП.16",null,8,"Безопасность жизнедеятельности"]
[null,"  ОП.01",null,9,"Теория государства и права"]
[null,"  ОП.02",null,10,"Конституционное право"]
[null,"  ОП.03",null,11,"Административное право"]
[null,"  ОП.04",null,12,"Основы экологического права"]
[null,"  ОП.05",null,13,"Трудовое право"]
[null,"  ОП.06",null,14,"Гражданское право"]
[null,"  ОП.07",null,15,"Семейное право"]
[null,"  ОП.08",null,16,"Гражданский процесс"]
[null,"  ОП.09",null,17,"Страховое дело"]
[null,"  ОП.13",null,18,"Документационное обеспечение управления"]
[null,"  ОП.15",null,19,"Муниципальное право"]
[null,"  МДК.01.01",null,20,"Право социального обеспечения"]
[null,"  МДК.01.02",null,21,"Психология социально-правовой деятельности"]
[null,"  УП.01.01",null,22,"Учебная практика"]
[null,"  ПП.01.01",null,23,"Производственная практика (по профилю специальности)"]
[null,"  МДК.02.01",null,24,"Организация работы органов и учреждений социальной защиты населения, органов Пенсионного фонда Российской Федерации"]
[null,"  УП.02.01",null,25,"Учебная практика"]
[null,"  ПП.02.01",null,26,"Производственная практика (по профилю специальности)"]
[null,"  МДК.03.01",null,27,"Организация предпринимательской деятельности"]
[null,"  УП.03.01",null,28,"Учебная практика"]
[null,"  ПП.03.01",null,29,"Производственная практика (по профилю специальности)"]
[null,null,null,30]
[null,null,null,31]
[null,null,null,32]
[null,null,null,33]
[null,null,null,34]
[null,null,null,35]
[null,null,null,36]
[null,null,null,37]
[null,null,null,38]
[null,null,null,39]
[null,null,null,40]
[null,null,null,41]
[null,null,null,42]
[null,null,null,43]
[null,null,null,44]
[null,null,null,45]
[null,null,null,46]
[null,null,null,47]
[null,null,null,48]
[null,null,null,49]
[null,null,null,50]
[null,null,null,51]
[null,null,null,52]
[null,null,null,53]
[null,null,null,54]
[null,null,null,55]
[null,null,null,56]
[null,null,null,57]
[null,null,null,58]
[null,null,null,59]
[null,null,null,60]
[null,null,null,61]
[null,null,null,62]
[null,null,null,63]
[null,null,null,64]
[null,null,null,65]
[null,null,null,66]
[null,null,null,67]
[null,null,null,68]
[null,null,null,69]
[null,null,null,70]
[null,null,null,71]
[null,null,null,72]
[null,null,null,73]
[null,null,null,74]
[null,null,null,75]
[null,null,null,76]
[null,null,null,77]
[null,null,null,78]
[null,null,null,79]
[null,null,null,80]
[null,null,null,81]
["ОК 10",null,null,1,"Соблюдать основы здорового образа жизни, требования охраны труда."]
[null,"  ОГСЭ.05",null,2,"Физическая культура"]
[null,"  ОГСЭ.01",null,3,"Основы философии"]
[null,"  ОГСЭ.02",null,4,"История"]
[null,"  ОГСЭ.03",null,5,"Иностранный язык"]
[null,"  ОГСЭ.04",null,6,"Русский язык и культура речи"]
[null,"  ЕН.02",null,7,"Информатика"]
[null,"  ОП.16",null,8,"Безопасность жизнедеятельности"]
[null,"  ОП.04",null,9,"Основы экологического права"]
[null,"  ОП.12",null,10,"Менеджмент"]
[null,"  УП.01.01",null,11,"Учебная практика"]
[null,"  ПП.01.01",null,12,"Производственная практика (по профилю специальности)"]
[null,"  УП.02.01",null,13,"Учебная практика"]
[null,"  ПП.02.01",null,14,"Производственная практика (по профилю специальности)"]
[null,"  МДК.03.01",null,15,"Организация предпринимательской деятельности"]
[null,"  УП.03.01",null,16,"Учебная практика"]
[null,"  ПП.03.01",null,17,"Производственная практика (по профилю специальности)"]
[null,null,null,18]
[null,null,null,19]
[null,null,null,20]
[null,null,null,21]
[null,null,null,22]
[null,null,null,23]
[null,null,null,24]
[null,null,null,25]
[null,null,null,26]
[null,null,null,27]
[null,null,null,28]
[null,null,null,29]
[null,null,null,30]
[null,null,null,31]
[null,null,null,32]
[null,null,null,33]
[null,null,null,34]
[null,null,null,35]
[null,null,null,36]
[null,null,null,37]
[null,null,null,38]
[null,null,null,39]
[null,null,null,40]
[null,null,null,41]
[null,null,null,42]
[null,null,null,43]
[null,null,null,44]
[null,null,null,45]
[null,null,null,46]
[null,null,null,47]
[null,null,null,48]
[null,null,null,49]
[null,null,null,50]
[null,null,null,51]
[null,null,null,52]
[null,null,null,53]
[null,null,null,54]
[null,null,null,55]
[null,null,null,56]
[null,null,null,57]
[null,null,null,58]
[null,null,null,59]
[null,null,null,60]
[null,null,null,61]
[null,null,null,62]
[null,null,null,63]
[null,null,null,64]
[null,null,null,65]
[null,null,null,66]
[null,null,null,67]
[null,null,null,68]
[null,null,null,69]
[null,null,null,70]
[null,null,null,71]
[null,null,null,72]
[null,null,null,73]
[null,null,null,74]
[null,null,null,75]
[null,null,null,76]
[null,null,null,77]
[null,null,null,78]
[null,null,null,79]
[null,null,null,80]
[null,null,null,81]
["ОК 11",null,null,1,"Соблюдать деловой этикет, культуру и психологические основы общения, нормы и правила поведения."]
[null,"  ОГСЭ.01",null,2,"Основы философии"]
[null,"  ОГСЭ.02",null,3,"История"]
[null,"  ОГСЭ.03",null,4,"Иностранный язык"]
[null,"  ОГСЭ.04",null,5,"Русский язык и культура речи"]
[null,"  ЕН.02",null,6,"Информатика"]
[null,"  ОП.16",null,7,"Безопасность жизнедеятельности"]
[null,"  ОП.03",null,8,"Административное право"]
[null,"  ОП.04",null,9,"Основы экологического права"]
[null,"  ОП.06",null,10,"Гражданское право"]
[null,"  ОП.07",null,11,"Семейное право"]
[null,"  ОП.12",null,12,"Менеджмент"]
[null,"  МДК.01.01",null,13,"Право социального обеспечения"]
[null,"  МДК.01.02",null,14,"Психология социально-правовой деятельности"]
[null,"  УП.01.01",null,15,"Учебная практика"]
[null,"  ПП.01.01",null,16,"Производственная практика (по профилю специальности)"]
[null,"  МДК.02.01",null,17,"Организация работы органов и учреждений социальной защиты населения, органов Пенсионного фонда Российской Федерации"]
[null,"  УП.02.01",null,18,"Учебная практика"]
[null,"  ПП.02.01",null,19,"Производственная практика (по профилю специальности)"]
[null,"  МДК.03.01",null,20,"Организация предпринимательской деятельности"]
[null,"  УП.03.01",null,21,"Учебная практика"]
[null,"  ПП.03.01",null,22,"Производственная практика (по профилю специальности)"]
[null,null,null,23]
[null,null,null,24]
[null,null,null,25]
[null,null,null,26]
[null,null,null,27]
[null,null,null,28]
[null,null,null,29]
[null,null,null,30]
[null,null,null,31]
[null,null,null,32]
[null,null,null,33]
[null,null,null,34]
[null,null,null,35]
[null,null,null,36]
[null,null,null,37]
[null,null,null,38]
[null,null,null,39]
[null,null,null,40]
[null,null,null,41]
[null,null,null,42]
[null,null,null,43]
[null,null,null,44]
[null,null,null,45]
[null,null,null,46]
[null,null,null,47]
[null,null,null,48]
[null,null,null,49]
[null,null,null,50]
[null,null,null,51]
[null,null,null,52]
[null,null,null,53]
[null,null,null,54]
[null,null,null,55]
[null,null,null,56]
[null,null,null,57]
[null,null,null,58]
[null,null,null,59]
[null,null,null,60]
[null,null,null,61]
[null,null,null,62]
[null,null,null,63]
[null,null,null,64]
[null,null,null,65]
[null,null,null,66]
[null,null,null,67]
[null,null,null,68]
[null,null,null,69]
[null,null,null,70]
[null,null,null,71]
[null,null,null,72]
[null,null,null,73]
[null,null,null,74]
[null,null,null,75]
[null,null,null,76]
[null,null,null,77]
[null,null,null,78]
[null,null,null,79]
[null,null,null,80]
[null,null,null,81]
["ОК 12",null,null,1,"Проявлять нетерпимость к коррупционному поведению."]
[null,"  ОГСЭ.01",null,2,"Основы философии"]
[null,"  ОГСЭ.02",null,3,"История"]
[null,"  ОГСЭ.03",null,4,"Иностранный язык"]
[null,"  ОГСЭ.04",null,5,"Русский язык и культура речи"]
[null,"  ЕН.02",null,6,"Информатика"]
[null,"  ОП.16",null,7,"Безопасность жизнедеятельности"]
[null,"  ОП.03",null,8,"Административное право"]
[null,"  ОП.04",null,9,"Основы экологического права"]
[null,"  ОП.06",null,10,"Гражданское право"]
[null,"  ОП.07",null,11,"Семейное право"]
[null,"  ОП.12",null,12,"Менеджмент"]
[null,"  МДК.01.01",null,13,"Право социального обеспечения"]
[null,"  МДК.01.02",null,14,"Психология социально-правовой деятельности"]
[null,"  УП.01.01",null,15,"Учебная практика"]
[null,"  ПП.01.01",null,16,"Производственная практика (по профилю специальности)"]
[null,"  МДК.02.01",null,17,"Организация работы органов и учреждений социальной защиты населения, органов Пенсионного фонда Российской Федерации"]
[null,"  УП.02.01",null,18,"Учебная практика"]
[null,"  ПП.02.01",null,19,"Производственная практика (по профилю специальности)"]
[null,"  МДК.03.01",null,20,"Организация предпринимательской деятельности"]
[null,"  УП.03.01",null,21,"Учебная практика"]
[null,"  ПП.03.01",null,22,"Производственная практика (по профилю специальности)"]
[null,null,null,23]
[null,null,null,24]
[null,null,null,25]
[null,null,null,26]
[null,null,null,27]
[null,null,null,28]
[null,null,null,29]
[null,null,null,30]
[null,null,null,31]
[null,null,null,32]
[null,null,null,33]
[null,null,null,34]
[null,null,null,35]
[null,null,null,36]
[null,null,null,37]
[null,null,null,38]
[null,null,null,39]
[null,null,null,40]
[null,null,null,41]
[null,null,null,42]
[null,null,null,43]
[null,null,null,44]
[null,null,null,45]
[null,null,null,46]
[null,null,null,47]
[null,null,null,48]
[null,null,null,49]
[null,null,null,50]
[null,null,null,51]
[null,null,null,52]
[null,null,null,53]
[null,null,null,54]
[null,null,null,55]
[null,null,null,56]
[null,null,null,57]
[null,null,null,58]
[null,null,null,59]
[null,null,null,60]
[null,null,null,61]
[null,null,null,62]
[null,null,null,63]
[null,null,null,64]
[null,null,null,65]
[null,null,null,66]
[null,null,null,67]
[null,null,null,68]
[null,null,null,69]
[null,null,null,70]
[null,null,null,71]
[null,null,null,72]
[null,null,null,73]
[null,null,null,74]
[null,null,null,75]
[null,null,null,76]
[null,null,null,77]
[null,null,null,78]
[null,null,null,79]
[null,null,null,80]
[null,null,null,81]
["ПК 1.1",null,null,1,"Осуществлять профессиональное толкование нормативных правовых актов для реализации прав граждан в сфере пенсионного обеспечения и социальной защиты."]
[null,"  ОП.16",null,2,"Безопасность жизнедеятельности"]
[null,"  ОП.01",null,3,"Теория государства и права"]
[null,"  ОП.02",null,4,"Конституционное право"]
[null,"  ОП.04",null,5,"Основы экологического права"]
[null,"  ОП.05",null,6,"Трудовое право"]
[null,"  ОП.06",null,7,"Гражданское право"]
[null,"  ОП.07",null,8,"Семейное право"]
[null,"  ОП.08",null,9,"Гражданский процесс"]
[null,"  ОП.09",null,10,"Страховое дело"]
[null,"  ОП.11",null,11,"Экономика организации"]
[null,"  ОП.13",null,12,"Документационное обеспечение управления"]
[null,"  ОП.15",null,13,"Муниципальное право"]
[null,"  МДК.01.01",null,14,"Право социального обеспечения"]
[null,"  МДК.01.02",null,15,"Психология социально-правовой деятельности"]
[null,"  УП.01.01",null,16,"Учебная практика"]
[null,"  ПП.01.01",null,17,"Производственная практика (по профилю специальности)"]
[null,"  УП.02.01",null,18,"Учебная практика"]
[null,"  МДК.03.01",null,19,"Организация предпринимательской деятельности"]
[null,"  УП.03.01",null,20,"Учебная практика"]
[null,"  ПП.03.01",null,21,"Производственная практика (по профилю специальности)"]
[null,null,null,22]
[null,null,null,23]
[null,null,null,24]
[null,null,null,25]
[null,null,null,26]
[null,null,null,27]
[null,null,null,28]
[null,null,null,29]
[null,null,null,30]
[null,null,null,31]
[null,null,null,32]
[null,null,null,33]
[null,null,null,34]
[null,null,null,35]
[null,null,null,36]
[null,null,null,37]
[null,null,null,38]
[null,null,null,39]
[null,null,null,40]
[null,null,null,41]
[null,null,null,42]
[null,null,null,43]
[null,null,null,44]
[null,null,null,45]
[null,null,null,46]
[null,null,null,47]
[null,null,null,48]
[null,null,null,49]
[null,null,null,50]
[null,null,null,51]
[null,null,null,52]
[null,null,null,53]
[null,null,null,54]
[null,null,null,55]
[null,null,null,56]
[null,null,null,57]
[null,null,null,58]
[null,null,null,59]
[null,null,null,60]
[null,null,null,61]
[null,null,null,62]
[null,null,null,63]
[null,null,null,64]
[null,null,null,65]
[null,null,null,66]
[null,null,null,67]
[null,null,null,68]
[null,null,null,69]
[null,null,null,70]
[null,null,null,71]
[null,null,null,72]
[null,null,null,73]
[null,null,null,74]
[null,null,null,75]
[null,null,null,76]
[null,null,null,77]
[null,null,null,78]
[null,null,null,79]
[null,null,null,80]
[null,null,null,81]
["ПК 1.2",null,null,1,"Осуществлять прием граждан по вопросам пенсионного обеспечения и социальной защиты."]
[null,"  ОП.16",null,2,"Безопасность жизнедеятельности"]
[null,"  ОП.05",null,3,"Трудовое право"]
[null,"  ОП.06",null,4,"Гражданское право"]
[null,"  ОП.07",null,5,"Семейное право"]
[null,"  ОП.08",null,6,"Гражданский процесс"]
[null,"  ОП.12",null,7,"Менеджмент"]
[null,"  ОП.13",null,8,"Документационное обеспечение управления"]
[null,"  МДК.01.01",null,9,"Право социального обеспечения"]
[null,"  МДК.01.02",null,10,"Психология социально-правовой деятельности"]
[null,"  УП.01.01",null,11,"Учебная практика"]
[null,"  ПП.01.01",null,12,"Производственная практика (по профилю специальности)"]
[null,"  УП.02.01",null,13,"Учебная практика"]
[null,"  ПП.02.01",null,14,"Производственная практика (по профилю специальности)"]
[null,"  МДК.03.01",null,15,"Организация предпринимательской деятельности"]
[null,"  УП.03.01",null,16,"Учебная практика"]
[null,"  ПП.03.01",null,17,"Производственная практика (по профилю специальности)"]
[null,null,null,18]
[null,null,null,19]
[null,null,null,20]
[null,null,null,21]
[null,null,null,22]
[null,null,null,23]
[null,null,null,24]
[null,null,null,25]
[null,null,null,26]
[null,null,null,27]
[null,null,null,28]
[null,null,null,29]
[null,null,null,30]
[null,null,null,31]
[null,null,null,32]
[null,null,null,33]
[null,null,null,34]
[null,null,null,35]
[null,null,null,36]
[null,null,null,37]
[null,null,null,38]
[null,null,null,39]
[null,null,null,40]
[null,null,null,41]
[null,null,null,42]
[null,null,null,43]
[null,null,null,44]
[null,null,null,45]
[null,null,null,46]
[null,null,null,47]
[null,null,null,48]
[null,null,null,49]
[null,null,null,50]
[null,null,null,51]
[null,null,null,52]
[null,null,null,53]
[null,null,null,54]
[null,null,null,55]
[null,null,null,56]
[null,null,null,57]
[null,null,null,58]
[null,null,null,59]
[null,null,null,60]
[null,null,null,61]
[null,null,null,62]
[null,null,null,63]
[null,null,null,64]
[null,null,null,65]
[null,null,null,66]
[null,null,null,67]
[null,null,null,68]
[null,null,null,69]
[null,null,null,70]
[null,null,null,71]
[null,null,null,72]
[null,null,null,73]
[null,null,null,74]
[null,null,null,75]
[null,null,null,76]
[null,null,null,77]
[null,null,null,78]
[null,null,null,79]
[null,null,null,80]
[null,null,null,81]
["ПК 1.3",null,null,1,"Рассматривать пакет документов для назначения пенсий, пособий, компенсаций, других выплат, а также мер социальной поддержки отдельным категориям граждан, нуждающимся в социальной защите."]
[null,"  ОП.16",null,2,"Безопасность жизнедеятельности"]
[null,"  ОП.05",null,3,"Трудовое право"]
[null,"  ОП.13",null,4,"Документационное обеспечение управления"]
[null,"  МДК.01.01",null,5,"Право социального обеспечения"]
[null,"  МДК.01.02",null,6,"Психология социально-правовой деятельности"]
[null,"  УП.01.01",null,7,"Учебная практика"]
[null,"  ПП.01.01",null,8,"Производственная практика (по профилю специальности)"]
[null,"  УП.02.01",null,9,"Учебная практика"]
[null,"  ПП.02.01",null,10,"Производственная практика (по профилю специальности)"]
[null,"  МДК.03.01",null,11,"Организация предпринимательской деятельности"]
[null,"  УП.03.01",null,12,"Учебная практика"]
[null,"  ПП.03.01",null,13,"Производственная практика (по профилю специальности)"]
[null,null,null,14]
[null,null,null,15]
[null,null,null,16]
[null,null,null,17]
[null,null,null,18]
[null,null,null,19]
[null,null,null,20]
[null,null,null,21]
[null,null,null,22]
[null,null,null,23]
[null,null,null,24]
[null,null,null,25]
[null,null,null,26]
[null,null,null,27]
[null,null,null,28]
[null,null,null,29]
[null,null,null,30]
[null,null,null,31]
[null,null,null,32]
[null,null,null,33]
[null,null,null,34]
[null,null,null,35]
[null,null,null,36]
[null,null,null,37]
[null,null,null,38]
[null,null,null,39]
[null,null,null,40]
[null,null,null,41]
[null,null,null,42]
[null,null,null,43]
[null,null,null,44]
[null,null,null,45]
[null,null,null,46]
[null,null,null,47]
[null,null,null,48]
[null,null,null,49]
[null,null,null,50]
[null,null,null,51]
[null,null,null,52]
[null,null,null,53]
[null,null,null,54]
[null,null,null,55]
[null,null,null,56]
[null,null,null,57]
[null,null,null,58]
[null,null,null,59]
[null,null,null,60]
[null,null,null,61]
[null,null,null,62]
[null,null,null,63]
[null,null,null,64]
[null,null,null,65]
[null,null,null,66]
[null,null,null,67]
[null,null,null,68]
[null,null,null,69]
[null,null,null,70]
[null,null,null,71]
[null,null,null,72]
[null,null,null,73]
[null,null,null,74]
[null,null,null,75]
[null,null,null,76]
[null,null,null,77]
[null,null,null,78]
[null,null,null,79]
[null,null,null,80]
[null,null,null,81]
["ПК 1.4",null,null,1,"Осуществлять установление (назначение, перерасчет, перевод), индексацию и корректировку пенсий, назначение пособий, компенсаций и других социальных выплат, используя информационно-компьютерные технологии."]
[null,"  ОП.16",null,2,"Безопасность жизнедеятельности"]
[null,"  ОП.05",null,3,"Трудовое право"]
[null,"  ОП.06",null,4,"Гражданское право"]
[null,"  ОП.07",null,5,"Семейное право"]
[null,"  ОП.08",null,6,"Гражданский процесс"]
[null,"  ОП.09",null,7,"Страховое дело"]
[null,"  ОП.13",null,8,"Документационное обеспечение управления"]
[null,"  МДК.01.01",null,9,"Право социального обеспечения"]
[null,"  МДК.01.02",null,10,"Психология социально-правовой деятельности"]
[null,"  УП.01.01",null,11,"Учебная практика"]
[null,"  ПП.01.01",null,12,"Производственная практика (по профилю специальности)"]
[null,"  УП.02.01",null,13,"Учебная практика"]
[null,"  ПП.02.01",null,14,"Производственная практика (по профилю специальности)"]
[null,"  МДК.03.01",null,15,"Организация предпринимательской деятельности"]
[null,"  УП.03.01",null,16,"Учебная практика"]
[null,"  ПП.03.01",null,17,"Производственная практика (по профилю специальности)"]
[null,null,null,18]
[null,null,null,19]
[null,null,null,20]
[null,null,null,21]
[null,null,null,22]
[null,null,null,23]
[null,null,null,24]
[null,null,null,25]
[null,null,null,26]
[null,null,null,27]
[null,null,null,28]
[null,null,null,29]
[null,null,null,30]
[null,null,null,31]
[null,null,null,32]
[null,null,null,33]
[null,null,null,34]
[null,null,null,35]
[null,null,null,36]
[null,null,null,37]
[null,null,null,38]
[null,null,null,39]
[null,null,null,40]
[null,null,null,41]
[null,null,null,42]
[null,null,null,43]
[null,null,null,44]
[null,null,null,45]
[null,null,null,46]
[null,null,null,47]
[null,null,null,48]
[null,null,null,49]
[null,null,null,50]
[null,null,null,51]
[null,null,null,52]
[null,null,null,53]
[null,null,null,54]
[null,null,null,55]
[null,null,null,56]
[null,null,null,57]
[null,null,null,58]
[null,null,null,59]
[null,null,null,60]
[null,null,null,61]
[null,null,null,62]
[null,null,null,63]
[null,null,null,64]
[null,null,null,65]
[null,null,null,66]
[null,null,null,67]
[null,null,null,68]
[null,null,null,69]
[null,null,null,70]
[null,null,null,71]
[null,null,null,72]
[null,null,null,73]
[null,null,null,74]
[null,null,null,75]
[null,null,null,76]
[null,null,null,77]
[null,null,null,78]
[null,null,null,79]
[null,null,null,80]
[null,null,null,81]
["ПК 1.5",null,null,1,"Осуществлять формирование и хранение дел получателей пенсий, пособий и других социальных выплат."]
[null,"  ЕН.02",null,2,"Информатика"]
[null,"  ОП.16",null,3,"Безопасность жизнедеятельности"]
[null,"  ОП.07",null,4,"Семейное право"]
[null,"  ОП.10",null,5,"Статистика"]
[null,"  ОП.14",null,6,"Информационные технологии в профессиональной деятельности"]
[null,"  МДК.01.01",null,7,"Право социального обеспечения"]
[null,"  МДК.01.02",null,8,"Психология социально-правовой деятельности"]
[null,"  УП.01.01",null,9,"Учебная практика"]
[null,"  ПП.01.01",null,10,"Производственная практика (по профилю специальности)"]
[null,"  УП.02.01",null,11,"Учебная практика"]
[null,"  ПП.02.01",null,12,"Производственная практика (по профилю специальности)"]
[null,"  МДК.03.01",null,13,"Организация предпринимательской деятельности"]
[null,"  УП.03.01",null,14,"Учебная практика"]
[null,"  ПП.03.01",null,15,"Производственная практика (по профилю специальности)"]
[null,null,null,16]
[null,null,null,17]
[null,null,null,18]
[null,null,null,19]
[null,null,null,20]
[null,null,null,21]
[null,null,null,22]
[null,null,null,23]
[null,null,null,24]
[null,null,null,25]
[null,null,null,26]
[null,null,null,27]
[null,null,null,28]
[null,null,null,29]
[null,null,null,30]
[null,null,null,31]
[null,null,null,32]
[null,null,null,33]
[null,null,null,34]
[null,null,null,35]
[null,null,null,36]
[null,null,null,37]
[null,null,null,38]
[null,null,null,39]
[null,null,null,40]
[null,null,null,41]
[null,null,null,42]
[null,null,null,43]
[null,null,null,44]
[null,null,null,45]
[null,null,null,46]
[null,null,null,47]
[null,null,null,48]
[null,null,null,49]
[null,null,null,50]
[null,null,null,51]
[null,null,null,52]
[null,null,null,53]
[null,null,null,54]
[null,null,null,55]
[null,null,null,56]
[null,null,null,57]
[null,null,null,58]
[null,null,null,59]
[null,null,null,60]
[null,null,null,61]
[null,null,null,62]
[null,null,null,63]
[null,null,null,64]
[null,null,null,65]
[null,null,null,66]
[null,null,null,67]
[null,null,null,68]
[null,null,null,69]
[null,null,null,70]
[null,null,null,71]
[null,null,null,72]
[null,null,null,73]
[null,null,null,74]
[null,null,null,75]
[null,null,null,76]
[null,null,null,77]
[null,null,null,78]
[null,null,null,79]
[null,null,null,80]
[null,null,null,81]
["ПК 1.6",null,null,1,"Консультировать граждан и представителей юридических лиц по вопросам пенсионного обеспечения и социальной защиты."]
[null,"  ОП.16",null,2,"Безопасность жизнедеятельности"]
[null,"  ОП.13",null,3,"Документационное обеспечение управления"]
[null,"  ОП.15",null,4,"Муниципальное право"]
[null,"  МДК.01.01",null,5,"Право социального обеспечения"]
[null,"  МДК.01.02",null,6,"Психология социально-правовой деятельности"]
[null,"  УП.01.01",null,7,"Учебная практика"]
[null,"  ПП.01.01",null,8,"Производственная практика (по профилю специальности)"]
[null,"  УП.02.01",null,9,"Учебная практика"]
[null,"  ПП.02.01",null,10,"Производственная практика (по профилю специальности)"]
[null,"  МДК.03.01",null,11,"Организация предпринимательской деятельности"]
[null,"  УП.03.01",null,12,"Учебная практика"]
[null,"  ПП.03.01",null,13,"Производственная практика (по профилю специальности)"]
[null,null,null,14]
[null,null,null,15]
[null,null,null,16]
[null,null,null,17]
[null,null,null,18]
[null,null,null,19]
[null,null,null,20]
[null,null,null,21]
[null,null,null,22]
[null,null,null,23]
[null,null,null,24]
[null,null,null,25]
[null,null,null,26]
[null,null,null,27]
[null,null,null,28]
[null,null,null,29]
[null,null,null,30]
[null,null,null,31]
[null,null,null,32]
[null,null,null,33]
[null,null,null,34]
[null,null,null,35]
[null,null,null,36]
[null,null,null,37]
[null,null,null,38]
[null,null,null,39]
[null,null,null,40]
[null,null,null,41]
[null,null,null,42]
[null,null,null,43]
[null,null,null,44]
[null,null,null,45]
[null,null,null,46]
[null,null,null,47]
[null,null,null,48]
[null,null,null,49]
[null,null,null,50]
[null,null,null,51]
[null,null,null,52]
[null,null,null,53]
[null,null,null,54]
[null,null,null,55]
[null,null,null,56]
[null,null,null,57]
[null,null,null,58]
[null,null,null,59]
[null,null,null,60]
[null,null,null,61]
[null,null,null,62]
[null,null,null,63]
[null,null,null,64]
[null,null,null,65]
[null,null,null,66]
[null,null,null,67]
[null,null,null,68]
[null,null,null,69]
[null,null,null,70]
[null,null,null,71]
[null,null,null,72]
[null,null,null,73]
[null,null,null,74]
[null,null,null,75]
[null,null,null,76]
[null,null,null,77]
[null,null,null,78]
[null,null,null,79]
[null,null,null,80]
[null,null,null,81]
["ПК 2.1",null,null,1,"Поддерживать базы данных получателей пенсий, пособий, компенсаций и других социальных выплат, а также услуг и льгот в актуальном состоянии."]
[null,"  ЕН.02",null,2,"Информатика"]
[null,"  ОП.16",null,3,"Безопасность жизнедеятельности"]
[null,"  ОП.14",null,4,"Информационные технологии в профессиональной деятельности"]
[null,"  УП.01.01",null,5,"Учебная практика"]
[null,"  ПП.01.01",null,6,"Производственная практика (по профилю специальности)"]
[null,"  МДК.02.01",null,7,"Организация работы органов и учреждений социальной защиты населения, органов Пенсионного фонда Российской Федерации"]
[null,"  УП.02.01",null,8,"Учебная практика"]
[null,"  ПП.02.01",null,9,"Производственная практика (по профилю специальности)"]
[null,"  МДК.03.01",null,10,"Организация предпринимательской деятельности"]
[null,"  УП.03.01",null,11,"Учебная практика"]
[null,"  ПП.03.01",null,12,"Производственная практика (по профилю специальности)"]
[null,null,null,13]
[null,null,null,14]
[null,null,null,15]
[null,null,null,16]
[null,null,null,17]
[null,null,null,18]
[null,null,null,19]
[null,null,null,20]
[null,null,null,21]
[null,null,null,22]
[null,null,null,23]
[null,null,null,24]
[null,null,null,25]
[null,null,null,26]
[null,null,null,27]
[null,null,null,28]
[null,null,null,29]
[null,null,null,30]
[null,null,null,31]
[null,null,null,32]
[null,null,null,33]
[null,null,null,34]
[null,null,null,35]
[null,null,null,36]
[null,null,null,37]
[null,null,null,38]
[null,null,null,39]
[null,null,null,40]
[null,null,null,41]
[null,null,null,42]
[null,null,null,43]
[null,null,null,44]
[null,null,null,45]
[null,null,null,46]
[null,null,null,47]
[null,null,null,48]
[null,null,null,49]
[null,null,null,50]
[null,null,null,51]
[null,null,null,52]
[null,null,null,53]
[null,null,null,54]
[null,null,null,55]
[null,null,null,56]
[null,null,null,57]
[null,null,null,58]
[null,null,null,59]
[null,null,null,60]
[null,null,null,61]
[null,null,null,62]
[null,null,null,63]
[null,null,null,64]
[null,null,null,65]
[null,null,null,66]
[null,null,null,67]
[null,null,null,68]
[null,null,null,69]
[null,null,null,70]
[null,null,null,71]
[null,null,null,72]
[null,null,null,73]
[null,null,null,74]
[null,null,null,75]
[null,null,null,76]
[null,null,null,77]
[null,null,null,78]
[null,null,null,79]
[null,null,null,80]
[null,null,null,81]
["ПК 2.2",null,null,1,"Выявлять лиц, нуждающихся в социальной защите, и осуществлять их учет, используя информационно-компьютерные технологии."]
[null,"  ЕН.02",null,2,"Информатика"]
[null,"  ОП.16",null,3,"Безопасность жизнедеятельности"]
[null,"  ОП.05",null,4,"Трудовое право"]
[null,"  ОП.07",null,5,"Семейное право"]
[null,"  УП.01.01",null,6,"Учебная практика"]
[null,"  ПП.01.01",null,7,"Производственная практика (по профилю специальности)"]
[null,"  МДК.02.01",null,8,"Организация работы органов и учреждений социальной защиты населения, органов Пенсионного фонда Российской Федерации"]
[null,"  УП.02.01",null,9,"Учебная практика"]
[null,"  ПП.02.01",null,10,"Производственная практика (по профилю специальности)"]
[null,"  МДК.03.01",null,11,"Организация предпринимательской деятельности"]
[null,"  УП.03.01",null,12,"Учебная практика"]
[null,"  ПП.03.01",null,13,"Производственная практика (по профилю специальности)"]
[null,null,null,14]
[null,null,null,15]
[null,null,null,16]
[null,null,null,17]
[null,null,null,18]
[null,null,null,19]
[null,null,null,20]
[null,null,null,21]
[null,null,null,22]
[null,null,null,23]
[null,null,null,24]
[null,null,null,25]
[null,null,null,26]
[null,null,null,27]
[null,null,null,28]
[null,null,null,29]
[null,null,null,30]
[null,null,null,31]
[null,null,null,32]
[null,null,null,33]
[null,null,null,34]
[null,null,null,35]
[null,null,null,36]
[null,null,null,37]
[null,null,null,38]
[null,null,null,39]
[null,null,null,40]
[null,null,null,41]
[null,null,null,42]
[null,null,null,43]
[null,null,null,44]
[null,null,null,45]
[null,null,null,46]
[null,null,null,47]
[null,null,null,48]
[null,null,null,49]
[null,null,null,50]
[null,null,null,51]
[null,null,null,52]
[null,null,null,53]
[null,null,null,54]
[null,null,null,55]
[null,null,null,56]
[null,null,null,57]
[null,null,null,58]
[null,null,null,59]
[null,null,null,60]
[null,null,null,61]
[null,null,null,62]
[null,null,null,63]
[null,null,null,64]
[null,null,null,65]
[null,null,null,66]
[null,null,null,67]
[null,null,null,68]
[null,null,null,69]
[null,null,null,70]
[null,null,null,71]
[null,null,null,72]
[null,null,null,73]
[null,null,null,74]
[null,null,null,75]
[null,null,null,76]
[null,null,null,77]
[null,null,null,78]
[null,null,null,79]
[null,null,null,80]
[null,null,null,81]
["ПК 2.3",null,null,1,"Организовывать и координировать социальную работу с отдельными лицами, категориями граждан и семьями, нуждающимися в социальной поддержке и защите."]
[null,"  ОП.16",null,2,"Безопасность жизнедеятельности"]
[null,"  ОП.02",null,3,"Конституционное право"]
[null,"  ОП.03",null,4,"Административное право"]
[null,"  ОП.08",null,5,"Гражданский процесс"]
[null,"  ОП.09",null,6,"Страховое дело"]
[null,"  ОП.12",null,7,"Менеджмент"]
[null,"  УП.01.01",null,8,"Учебная практика"]
[null,"  ПП.01.01",null,9,"Производственная практика (по профилю специальности)"]
[null,"  МДК.02.01",null,10,"Организация работы органов и учреждений социальной защиты населения, органов Пенсионного фонда Российской Федерации"]
[null,"  УП.02.01",null,11,"Учебная практика"]
[null,"  ПП.02.01",null,12,"Производственная практика (по профилю специальности)"]
[null,"  МДК.03.01",null,13,"Организация предпринимательской деятельности"]
[null,"  УП.03.01",null,14,"Учебная практика"]
[null,"  ПП.03.01",null,15,"Производственная практика (по профилю специальности)"]
[null,null,null,16]
[null,null,null,17]
[null,null,null,18]
[null,null,null,19]
[null,null,null,20]
[null,null,null,21]
[null,null,null,22]
[null,null,null,23]
[null,null,null,24]
[null,null,null,25]
[null,null,null,26]
[null,null,null,27]
[null,null,null,28]
[null,null,null,29]
[null,null,null,30]
[null,null,null,31]
[null,null,null,32]
[null,null,null,33]
[null,null,null,34]
[null,null,null,35]
[null,null,null,36]
[null,null,null,37]
[null,null,null,38]
[null,null,null,39]
[null,null,null,40]
[null,null,null,41]
[null,null,null,42]
[null,null,null,43]
[null,null,null,44]
[null,null,null,45]
[null,null,null,46]
[null,null,null,47]
[null,null,null,48]
[null,null,null,49]
[null,null,null,50]
[null,null,null,51]
[null,null,null,52]
[null,null,null,53]
[null,null,null,54]
[null,null,null,55]
[null,null,null,56]
[null,null,null,57]
[null,null,null,58]
[null,null,null,59]
[null,null,null,60]
[null,null,null,61]
[null,null,null,62]
[null,null,null,63]
[null,null,null,64]
[null,null,null,65]
[null,null,null,66]
[null,null,null,67]
[null,null,null,68]
[null,null,null,69]
[null,null,null,70]
[null,null,null,71]
[null,null,null,72]
[null,null,null,73]
[null,null,null,74]
[null,null,null,75]
[null,null,null,76]
[null,null,null,77]
[null,null,null,78]
[null,null,null,79]
[null,null,null,80]
[null,null,null,81]

{"sheet":"Компетенции(2)","index":4,"n_rows":459,"n_cols":17,"rows_kept":459,"cut":false,"hidden":false,"merged":[[0,2,0,4],[1,2,8,2],[1,4,8,4],[9,2,9,4],[10,2,17,2],[10,4,17,4],[18,2,18,4],[19,2,26,2],[19,4,26,4],[27,2,34,2],[27,4,34,4],[35,2,42,2],[35,4,42,4],[43,2,50,2],[43,4,50,4],[51,2,58,2],[51,4,58,4],[59,2,66,2],[59,4,66,4],[67,2,74,2],[67,4,74,4],[75,2,82,2],[75,4,82,4],[83,2,90,2],[83,4,90,4],[91,2,98,2],[91,4,98,4],[99,2,99,4],[100,2,107,2],[100,4,107,4],[108,2,115,2],[108,4,115,4],[116,2,123,2],[116,4,123,4],[124,2,131,2],[124,4,131,4],[132,2,132,4],[133,2,140,2],[133,4,140,4],[141,2,148,2],[141,4,148,4],[149,2,156,2],[149,4,156,4],[157,2,164,2],[157,4,164,4],[165,2,172,2],[165,4,172,4],[173,2,180,2],[173,4,180,4],[181,2,181,4],[182,2,189,2],[182,4,189,4],[190,2,197,2],[190,4,197,4],[198,2,205,2],[198,4,205,4],[206,2,206,4],[207,2,214,2],[207,4,214,4],[215,2,222,2],[215,4,222,4],[223,2,230,2],[223,4,230,4],[231,2,238,2],[231,4,238,4],[239,2,246,2],[239,4,246,4],[247,2,254,2],[247,4,254,4],[255,2,262,2],[255,4,262,4],[263,2,270,2],[263,4,270,4],[271,2,278,2],[271,4,278,4],[279,2,286,2],[279,4,286,4],[287,2,294,2],[287,4,294,4],[295,2,302,2],[295,4,302,4],[303,2,310,2],[303,4,310,4],[311,2,318,2],[311,4,318,4],[319,2,326,2],[319,4,326,4],[327,2,334,2],[327,4,334,4],[335,2,342,2],[335,4,342,4],[343,2,343,4],[344,2,351,2],[344,4,351,4],[352,2,352,4],[353,2,360,2],[353,4,360,4],[361,2,368,2],[361,4,368,4],[369,2,376,2],[369,4,376,4],[377,2,384,2],[377,4,384,4],[385,2,392,2],[385,4,392,4],[393,2,393,4],[394,2,401,2],[394,4,401,4],[402,2,409,2],[402,4,409,4],[410,2,417,2],[410,4,417,4],[418,2,425,2],[418,4,425,4],[451,2,458,2],[451,4,458,4],[426,2,426,4],[427,2,434,2],[427,4,434,4],[435,2,442,2],[435,4,442,4],[443,2,450,2],[443,4,450,4]]}
[]
[null,1,"НО",null,"Начальное общее образование"]
[null,2]
[null,3]
[null,4]
[null,5]
[null,6]
[null,7]
[null,8]
[]
[null,1,"ОО",null,"Основное общее образование"]
[null,2]
[null,3]
[null,4]
[null,5]
[null,6]
[null,7]
[null,8]
[]
[null,1,"БД",null,"Базовые дисциплины"]
[null,2]
[null,3]
[null,4]
[null,5]
[null,6]
[null,7]
[null,8]
["0",1,"БД.01","3","Иностранный язык"]
[null,2]
[null,3]
[null,4]
[null,5]
[null,6]
[null,7]
[null,8]
["1",1,"БД.02","3","Обществознание (включая экономику и право)"]
[null,2]
[null,3]
[null,4]
[null,5]
[null,6]
[null,7]
[null,8]
["2",1,"БД.03","3","Математика"]
[null,2]
[null,3]
[null,4]
[null,5]
[null,6]
[null,7]
[null,8]
["3",1,"БД.04","3","Информатика и ИКТ"]
[null,2]
[null,3]
[null,4]
[null,5]
[null,6]
[null,7]
[null,8]
["4",1,"БД.05","3","География"]
[null,2]
[null,3]
[null,4]
[null,5]
[null,6]
[null,7]
[null,8]
["5",1,"БД.06","3","Естествознание"]
[null,2]
[null,3]
[null,4]
[null,5]
[null,6]
[null,7]
[null,8]
["6",1,"БД.07","3","Искусство (МХК)"]
[null,2]
[null,3]
[null,4]
[null,5]
[null,6]
[null,7]
[null,8]
["7",1,"БД.08","3","Физическая культура"]
[null,2]
[null,3]
[null,4]
[null,5]
[null,6]
[null,7]
[null,8]
["8",1,"БД.09","3","Основы безопасности жизнедеятельности"]
[null,2]
[null,3]
[null,4]
[null,5]
[null,6]
[null,7]
[null,8]
[]
[null,1,"ПД",null,"Профильные дисциплины"]
[null,2]
[null,3]
[null,4]
[null,5]
[null,6]
[null,7]
[null,8]
["9",1,"ПД.01","4","Русский язык"]
[null,2]
[null,3]
[null,4]
[null,5]
[null,6]
[null,7]
[null,8]
["10",1,"ПД.02","4","Литература"]
[null,2]
[null,3]
[null,4]
[null,5]
[null,6]
[null,7]
[null,8]
["11",1,"ПД.03","4","История"]
[null,2]
[null,3]
[null,4]
[null,5]
[null,6]
[null,7]
[null,8]
[]
[null,1,"ОГСЭ",null,"Общий гуманитарный и социально-экономический цикл","ОК 1","ОК 2","ОК 3","ОК 4","ОК 5","ОК 6","ОК 7","ОК 8","ОК 9","ОК 10","ОК 11","ОК 12"]
[null,2]
[null,3]
[null,4]
[null,5]
[null,6]
[null,7]
[null,8]
["12",1,"ОГСЭ.05","6","Физическая культура","ОК 2","ОК 3","ОК 6","ОК 10"]
[null,2]
[null,3]
[null,4]
[null,5]
[null,6]
[null,7]
[null,8]
["13",1,"ОГСЭ.01","6","Основы философии","ОК 1","ОК 2","ОК 3","ОК 4","ОК 5","ОК 6","ОК 7","ОК 8","ОК 9","ОК 10","ОК 11","ОК 12"]
[null,2]
[null,3]
[null,4]
[null,5]
[null,6]
[null,7]
[null,8]
["14",1,"ОГСЭ.02","6","История","ОК 1","ОК 2","ОК 3","ОК 4","ОК 5","ОК 6","ОК 7","ОК 8","ОК 9","ОК 10","ОК 11","ОК 12"]
[null,2]
[null,3]
[null,4]
[null,5]
[null,6]
[null,7]
[null,8]
["15",1,"ОГСЭ.03","6","Иностранный язык","ОК 1","ОК 2","ОК 3","ОК 4","ОК 5","ОК 6","ОК 7","ОК 8","ОК 9","ОК 10","ОК 11","ОК 12"]
[null,2]
[null,3]
[null,4]
[null,5]
[null,6]
[null,7]
[null,8]
["16",1,"ОГСЭ.04","6","Русский язык и культура речи","ОК 1","ОК 2","ОК 3","ОК 4","ОК 5","ОК 6","ОК 7","ОК 8","ОК 9","ОК 10","ОК 11","ОК 12"]
[null,2]
[null,3]
[null,4]
[null,5]
[null,6]
[null,7]
[null,8]
[]
[null,1,"ЕН",null,"Математический и общий естественнонаучный цикл","ОК 1","ОК 2","ОК 3","ОК 4","ОК 5","ОК 6","ОК 7","ОК 8","ОК 9","ОК 10","ОК 11","ОК 12"]
[null,2,null,null,null,"ПК 1.5","ПК 2.1","ПК 2.2"]
[null,3]
[null,4]
[null,5]
[null,6]
[null,7]
[null,8]
["17",1,"ЕН.01","7","Математика","ОК 1","ОК 2","ОК 3","ОК 4","ОК 5","ОК 6","ОК 9"]
[null,2]
[null,3]
[null,4]
[null,5]
[null,6]
[null,7]
[null,8]
["18",1,"ЕН.02","7","Информатика","ОК 1","ОК 2","ОК 3","ОК 4","ОК 5","ОК 6","ОК 7","ОК 8","ОК 9","ОК 10","ОК 11","ОК 12"]
[null,2,null,null,null,"ПК 1.5","ПК 2.1","ПК 2.2"]
[null,3]
[null,4]
[null,5]
[null,6]
[null,7]
[null,8]
[]
[null,1,"ОП",null,"Общепрофессиональные дисциплины","ОК 1","ОК 2","ОК 3","ОК 4","ОК 5","ОК 6","ОК 7","ОК 8","ОК 9","ОК 10","ОК 11","ОК 12"]
[null,2,null,null,null,"ПК 1.1","ПК 1.2","ПК 1.3","ПК 1.4","ПК 1.5","ПК 1.6","ПК 2.1","ПК 2.2","ПК 2.3"]
[null,3]
[null,4]
[null,5]
[null,6]
[null,7]
[null,8]
["19",1,"ОП.16","9","Безопасность жизнедеятельности","ОК 1","ОК 2","ОК 3","ОК 4","ОК 5","ОК 6","ОК 7","ОК 8","ОК 9","ОК 10","ОК 11","ОК 12"]
[null,2,null,null,null,"ПК 1.1","ПК 1.2","ПК 1.3","ПК 1.4","ПК 1.5","ПК 1.6","ПК 2.1","ПК 2.2","ПК 2.3"]
[null,3]
[null,4]
[null,5]
[null,6]
[null,7]
[null,8]
["20",1,"ОП.01","9","Теория государства и права","ОК 4","ОК 9","ПК 1.1"]
[null,2]
[null,3]
[null,4]
[null,5]
[null,6]
[null,7]
[null,8]
["21",1,"ОП.02","9","Конституционное право","ОК 2","ОК 4","ОК 5","ОК 6","ОК 8","ОК 9","ПК 1.1","ПК 2.3"]
[null,2]
[null,3]
[null,4]
[null,5]
[null,6]
[null,7]
[null,8]
["22",1,"ОП.03","9","Административное право","ОК 2","ОК 4","ОК 5","ОК 6","ОК 8","ОК 9","ОК 11","ОК 12","ПК 2.3"]
[null,2]
[null,3]
[null,4]
[null,5]
[null,6]
[null,7]
[null,8]
["23",1,"ОП.04","9","Основы экологического права","ОК 2","ОК 4","ОК 5","ОК 6","ОК 8","ОК 9","ОК 10","ОК 11","ОК 12","ПК 1.1"]
[null,2]
[null,3]
[null,4]
[null,5]
[null,6]
[null,7]
[null,8]
["24",1,"ОП.05","9","Трудовое право","ОК 1","ОК 2","ОК 3","ОК 4","ОК 5","ОК 6","ОК 8","ОК 9","ПК 1.1","ПК 1.2","ПК 1.3","ПК 1.4"]
[null,2,null,null,null,"ПК 2.2"]
[null,3]
[null,4]
[null,5]
[null,6]
[null,7]
[null,8]
["25",1,"ОП.06","9","Гражданское право","ОК 2","ОК 4","ОК 9","ОК 11","ОК 12","ПК 1.1","ПК 1.2","ПК 1.4"]
[null,2]
[null,3]
[null,4]
[null,5]
[null,6]
[null,7]
[null,8]
["26",1,"ОП.07","9","Семейное право","ОК 2","ОК 4","ОК 5","ОК 7","ОК 8","ОК 9","ОК 11","ОК 12","ПК 1.1","ПК 1.2","ПК 1.4","ПК 1.5"]
[null,2,null,null,null,"ПК 2.2"]
[null,3]
[null,4]
[null,5]
[null,6]
[null,7]
[null,8]
["27",1,"ОП.08","9","Гражданский процесс","ОК 1","ОК 2","ОК 4","ОК 5","ОК 6","ОК 7","ОК 8","ОК 9","ПК 1.1","ПК 1.2","ПК 1.4","ПК 2.3"]
[null,2]
[null,3]
[null,4]
[null,5]
[null,6]
[null,7]
[null,8]
["28",1,"ОП.09","9","Страховое дело","ОК 1","ОК 2","ОК 3","ОК 4","ОК 5","ОК 9","ПК 1.1","ПК 1.4","ПК 2.3"]
[null,2]
[null,3]
[null,4]
[null,5]
[null,6]
[null,7]
[null,8]
["29",1,"ОП.10","9","Статистика","ОК 2","ОК 3","ОК 4","ОК 5","ПК 1.5"]
[null,2]
[null,3]
[null,4]
[null,5]
[null,6]
[null,7]
[null,8]
["30",1,"ОП.11","9","Экономика организации","ОК 2","ОК 3","ОК 4","ПК 1.1"]
[null,2]
[null,3]
[null,4]
[null,5]
[null,6]
[null,7]
[null,8]
["31",1,"ОП.12","9","Менеджмент","ОК 1","ОК 2","ОК 3","ОК 6","ОК 7","ОК 8","ОК 10","ОК 11","ОК 12","ПК 1.2","ПК 2.3"]
[null,2]
[null,3]
[null,4]
[null,5]
[null,6]
[null,7]
[null,8]
["32",1,"ОП.13","9","Документационное обеспечение управления","ОК 1","ОК 2","ОК 3","ОК 4","ОК 5","ОК 8","ОК 9","ПК 1.1","ПК 1.2","ПК 1.3","ПК 1.4","ПК 1.6"]
[null,2]
[null,3]
[null,4]
[null,5]
[null,6]
[null,7]
[null,8]
["33",1,"ОП.14","9","Информационные технологии в профессиональной деятельности","ОК 1","ОК 2","ОК 3","ОК 4","ОК 5","ОК 6","ПК 1.5","ПК 2.1"]
[null,2]
[null,3]
[null,4]
[null,5]
[null,6]
[null,7]
[null,8]
["34",1,"ОП.15","9","Муниципальное право","ОК 4","ОК 9","ПК 1.1","ПК 1.6"]
[null,2]
[null,3]
[null,4]
[null,5]
[null,6]
[null,7]
[null,8]
[]
[null,1,"ПМ",null,"Профессиональные модули"]
[null,2]
[null,3]
[null,4]
[null,5]
[null,6]
[null,7]
[null,8]
[]
[null,1,"ПМ.01",null,"Обеспечение реализации прав граждан в сфере пенсионного обеспечения и социальной защиты","ОК 1","ОК 2","ОК 3","ОК 4","ОК 5","ОК 6","ОК 7","ОК 8","ОК 9","ОК 10","ОК 11","ОК 12"]
[null,2,null,null,null,"ПК 1.1","ПК 1.2","ПК 1.3","ПК 1.4","ПК 1.5","ПК 1.6","ПК 2.1","ПК 2.2","ПК 2.3"]
[null,3]
[null,4]
[null,5]
[null,6]
[null,7]
[null,8]
["35",1,"МДК.01.01","3001","Право социального обеспечения","ОК 1","ОК 3","ОК 4","ОК 5","ОК 6","ОК 7","ОК 9","ОК 11","ОК 12","ПК 1.1","ПК 1.2","ПК 1.3"]
[null,2,null,null,null,"ПК 1.4","ПК 1.5","ПК 1.6"]
[null,3]
[null,4]
[null,5]
[null,6]
[null,7]
[null,8]
["36",1,"МДК.01.02","3001","Психология социально-правовой деятельности","ОК 1","ОК 3","ОК 4","ОК 5","ОК 6","ОК 7","ОК 9","ОК 11","ОК 12","ПК 1.1","ПК 1.2","ПК 1.3"]
[null,2,null,null,null,"ПК 1.4","ПК 1.5","ПК 1.6"]
[null,3]
[null,4]
[null,5]
[null,6]
[null,7]
[null,8]
["37",1,"УП.01.01","3001","Учебная практика","ОК 1","ОК 2","ОК 3","ОК 4","ОК 5","ОК 6","ОК 7","ОК 8","ОК 9","ОК 10","ОК 11","ОК 12"]
[null,2,null,null,null,"ПК 1.1","ПК 1.2","ПК 1.3","ПК 1.4","ПК 1.5","ПК 1.6","ПК 2.1","ПК 2.2","ПК 2.3"]
[null,3]
[null,4]
[null,5]
[null,6]
[null,7]
[null,8]
["38",1,"ПП.01.01","3001","Производственная практика (по профилю специальности)","ОК 1","ОК 2","ОК 3","ОК 4","ОК 5","ОК 6","ОК 7","ОК 8","ОК 9","ОК 10","ОК 11","ОК 12"]
[null,2,null,null,null,"ПК 1.1","ПК 1.2","ПК 1.3","ПК 1.4","ПК 1.5","ПК 1.6","ПК 2.1","ПК 2.2","ПК 2.3"]
[null,3]
[null,4]
[null,5]
[null,6]
[null,7]
[null,8]
[]
[null,1,"ПМ.02",null,"Организационное обеспечение деятельности учреждений социальной защиты населения и органов Пенсионного фонда Российской Федерации","ОК 1","ОК 2","ОК 3","ОК 4","ОК 5","ОК 6","ОК 7","ОК 8","ОК 9","ОК 10","ОК 11","ОК 12"]
[null,2,null,null,null,"ПК 1.1","ПК 1.2","ПК 1.3","ПК 1.4","ПК 1.5","ПК 1.6","ПК 2.1","ПК 2.2","ПК 2.3"]
[null,3]
[null,4]
[null,5]
[null,6]
[null,7]
[null,8]
["39",1,"МДК.02.01","3002","Организация работы органов и учреждений социальной защиты населения, органов Пенсионного фонда Российской Федерации","ОК 1","ОК 2","ОК 3","ОК 4","ОК 6","ОК 7","ОК 8","ОК 9","ОК 11","ОК 12","ПК 2.1","ПК 2.2"]
[null,2,null,null,null,"ПК 2.3"]
[null,3]
[null,4]
[null,5]
[null,6]
[null,7]
[null,8]
["40",1,"УП.02.01","3002","Учебная практика","ОК 1","ОК 2","ОК 3","ОК 4","ОК 5","ОК 6","ОК 7","ОК 8","ОК 9","ОК 10","ОК 11","ОК 12"]
[null,2,null,null,null,"ПК 1.1","ПК 1.2","ПК 1.3","ПК 1.4","ПК 1.5","ПК 1.6","ПК 2.1","ПК 2.2","ПК 2.3"]
[null,3]
[null,4]
[null,5]
[null,6]
[null,7]
[null,8]
["41",1,"ПП.02.01","3002","Производственная практика (по профилю специальности)","ОК 1","ОК 2","ОК 3","ОК 4","ОК 5","ОК 6","ОК 7","ОК 8","ОК 9","ОК 10","ОК 11","ОК 12"]
[null,2,null,null,null,"ПК 1.2","ПК 1.3","ПК 1.4","ПК 1.5","ПК 1.6","ПК 2.1","ПК 2.2","ПК 2.3"]
[null,3]
[null,4]
[null,5]
[null,6]
[null,7]
[null,8]
[]
[null,1,"ПМ.03",null,"Организация предпринимательской деятельности","ОК 1","ОК 2","ОК 3","ОК 4","ОК 5","ОК 6","ОК 7","ОК 8","ОК 9","ОК 10","ОК 11","ОК 12"]
[null,2,null,null,null,"ПК 1.1","ПК 1.2","ПК 1.3","ПК 1.4","ПК 1.5","ПК 1.6","ПК 2.1","ПК 2.2","ПК 2.3"]
[null,3]
[null,4]
[null,5]
[null,6]
[null,7]
[null,8]
["42",1,"МДК.03.01","3003","Организация предпринимательской деятельности","ОК 1","ОК 2","ОК 3","ОК 4","ОК 5","ОК 6","ОК 7","ОК 8","ОК 9","ОК 10","ОК 11","ОК 12"]
[null,2,null,null,null,"ПК 1.1","ПК 1.2","ПК 1.3","ПК 1.4","ПК 1.5","ПК 1.6","ПК 2.1","ПК 2.2","ПК 2.3"]
[null,3]
[null,4]
[null,5]
[null,6]
[null,7]
[null,8]
["43",1,"УП.03.01","3003","Учебная практика","ОК 1","ОК 2","ОК 3","ОК 4","ОК 5","ОК 6","ОК 7","ОК 8","ОК 9","ОК 10","ОК 11","ОК 12"]
[null,2,null,null,null,"ПК 1.1","ПК 1.2","ПК 1.3","ПК 1.4","ПК 1.5","ПК 1.6","ПК 2.1","ПК 2.2","ПК 2.3"]
[null,3]
[null,4]
[null,5]
[null,6]
[null,7]
[null,8]
["44",1,"ПП.03.01","3003","Производственная практика (по профилю специальности)","ОК 1","ОК 2","ОК 3","ОК 4","ОК 5","ОК 6","ОК 7","ОК 8","ОК 9","ОК 10","ОК 11","ОК 12"]
[null,2,null,null,null,"ПК 1.1","ПК 1.2","ПК 1.3","ПК 1.4","ПК 1.5","ПК 1.6","ПК 2.1","ПК 2.2","ПК 2.3"]
[null,3]
[null,4]
[null,5]
[null,6]
[null,7]
[null,8]

{"sheet":"Кабинеты","index":5,"n_rows":25,"n_cols":3,"rows_kept":25,"cut":false,"hidden":false,"merged":[]}
[null,"№","Наименование"]
[null,null,"Кабинеты:"]
[null,"1","истории;"]
[null,"2","основ философии;"]
[null,"3","иностранного языка;"]
[null,"4","основ экологического права;"]
[null,"5","теории государства и права;"]
[null,"6","конституционного и административного права;"]
[null,"7","трудового права;"]
[null,"8","гражданского, семейного права и гражданского процесса;"]
[null,"9","дисциплин права;"]
[null,"10","менеджмента и экономики организации;"]
[null,"11","профессиональных дисциплин;"]
[null,"12","права социального обеспечения;"]
[null,"13","безопасности жизнедеятельности."]
[null,null,"Лаборатории:"]
[null,"1","информатики;"]
[null,"2","информационных технологий в профессиональной деятельности;"]
[null,null,"Спортивный комплекс:"]
[null,"1","спортивный зал;"]
[null,"2","открытый стадион широкого профиля с элементами полосы препятствий;"]
[null,"3","стрелковый тир (в любой модификации, включая электронный) или место для стрельбы."]
[null,null,"Залы:"]
[null,"1","библиотека, читальный зал с выходом в сеть Интернет;"]
[null,"2","актовый зал."]

{"sheet":"Пояснения","index":6,"n_rows":18,"n_cols":4,"rows_kept":18,"cut":false,"hidden":false,"merged":[[1,1,1,3],[2,1,2,3],[3,1,3,3],[4,1,4,3],[5,1,5,3],[6,1,6,3],[13,1,13,3],[14,1,14,3],[15,1,15,3],[0,1,0,3],[7,1,7,3],[8,1,8,3],[9,1,9,3],[10,1,10,3],[11,1,11,3],[12,1,12,3]]}
[null,"Пояснения"]
[null,"1. Настоящий учебный план ППССЗ разработан на основе Федерального государственного образовательного стандарта среднего профессионального образования  по специальности 40.02.01 Право и организация социального обеспечения, утвержденного приказом Министерства образования и науки Российской Федерации от 12 мая 2014 г. N 508."]
[null,"2. Общеобразовательный цикл ППССЗ  сформирован в соответствии с приказом Министерства образования и науки РФ  \"Об утверждении порядка организации и осуществления образовательной деятельности по образовательным программам среднего профессионального образования\" и разъяснениями по  реализации образовательной программы среднего общего образования в пределах освоения образовательных программ среднего профессионального образования на базе основного общего образования с учетом требований ФГОС и профиля получаемого профессионального образования, одобрено решением Научно-методического совета Центра профессионального образования ФГАУ \"ФИРО\""]
[null,"3. Рабочий учебный план составлен с учетом потребностей регионального рынка труда. Вариативная часть ППССЗ направлена на формирование профессиональных компетенций, соответствующих виду профессиональной деятельности:  Право и организация социального обеспечения."]
[null,"4.Варитативная часть распределена следующим образом: Добавлена дисциплина в цикле ОГСЭ: Русский язык и культура речи - 48 час; добавлены часы на Иностранный язык в количестве 19 часов; увеличен цикл ОП на 569 часов, в том числе добавлена дисциплина уголовное правоо - 102 час; уголовный процесс -57 часов; добавлены часы на изучение профессиональных модулей в количестве 109 часов, в том числе добавлен модуль Всего распределено 684 часа."]
[null,"5. Максимальный объем учебной нагрузки обучающегося составляет 54 академических часа в неделю, включая все виды аудиторной и внеаудиторной (самостоятельной) учебной работы по освоению ППССЗ. Максимальный объем аудиторной учебной нагрузки при очной форме получения образования составляет 36 академических часов в неделю. "]
[null,"6. Выполнение курсовой работы предусмотрено по МДК.01.01 Право и социальное обеспечение в 5 семестре. Выполнение курсовой работы рассматривается как вид учебной работы по профессиональному модулю и реализуется в пределах времени, отведенного на его освоение."]
[null,"7. Оценка качества освоения дисциплин, междисциплинарных курсов, профессиональных модулей включает текущий контроль и промежуточную аттестацию."]
[null,"8. В учебном плане закреплены следующие формы проведения промежуточной аттестации: экзаменты, зачеты, дифференцированые зачеты и другие формы контроля. Количество экзаменов в учебном году не превышает 8, зачетов - 10."]
[null,"9. Время, отведенное учебными планами на консультации, предназначено для дополнительной подготовки к экзаменам, зачетам и работе с неуспевающими студентами и составляет не менее 4 часов из расчета на одного студента на каждый учебный год. Консультации проводятся как групповые, так и индивидуальные, на основе утвержденных учебным отделом графиков."]
[null,"10. Учебная и производственная практика (по профилю специальности) в количестве 8 недель реализуются концентрированно в несколько периодов в рамках професииональных модулей: учебная практика по обеспечению реализации прав граждан в сфере пенсионного обеспечения и социальной защиты - 3 недели; учебная практика по организации предпринимательской деятельности - 1 неделя; производственная практика (по профилю специальности) по обеспечению реализации прав граждан в сфере пенсионного обеспечения и социальной защиты - 2 недели; производственная практика (по профилю специальности) по организационному обеспечению деятельности учреждений социальной защиты населения и органов Пенсионного фонда Российской Федерации - 2 недели. Формой аттестации по результатам учебной практики является зачёт, по результатам производственной (по профилю специальности) и преддипломной практик - дифференцированный зачёт."]
[null,"11. Производственная практика (преддипломная) в количестве 4 недель реализуется перед ГИА (ИА) и направлена на углубление студентом первоначального профессионального опыта, проверку его готовности к самостоятельной трудовой деятельности, а также на подготовку к выполнению выпускной квалификационной работы."]
[null,"12. Государственная итоговая аттестация включает подготовку и защиту выпускной квалификационной работы - дипломной работы. Тематика дипломной работы соответствует содержанию одного или нескольких профессиональных модулей."]
[null,"13. В рамках дисциплины \"Безопасность жизнедеятельности\"  предусмотрено освоение основ военной службы"]
[null,"14. В колледже установлена шестидневная учебная неделя. Продолжительность занятий - 90 минут"]
[null,"Согласовано"]
[null,"Юрист -консульт ГК Лаура ООО \"Авто-Хоста\"",null,"Журавлева О.В."]
[null,"Зав.кафедры Гражданско - правовых дисциплин филиала ВГУЮ (РПА Минюста России)в г. Сочи",null,"к.ю.н. Сарычев И.А."]

{"sheet":"Start","index":7,"n_rows":0,"n_cols":0,"rows_kept":0,"cut":false,"hidden":true,"merged":[]}